Cogmind - Beta 12 @@@ ROGUE MODE // 2023.05.16 @ 20:27:27 Player: Pogmind Result: Heading to fleet! Performance ------------- Evolutions (9) 4500 Regions Visited (47) 9400 Robots Destroyed (982) 4910 Value Destroyed (42165) 42165 Prototype IDs (330) 6600 Alien Tech Used (17) 3400 Bonus (59874) 59874 TOTAL SCORE: 130849 Bonus ------- High Alert Combat Kills 4985 Follower Combat Kills 4778 Entered Garrisons 400 Aligned with FarCom 300 Met Data Miner 300 Destroyed Z-Imprinter 1000 Met Zhirov 300 Met Warlord at Base 500 MAIN.C Attacked Warlord 500 Warlord Defense Kills 30 Used Core Reset Matrix 3000 Met Warlord at Research 2000 Recovered Sigix Corpse 2000 Destroyed MAIN.C Guards 500 Met MAIN.C 5000 Destroyed MAIN.C Shell 5000 Destroyed MAIN.C 10000 Met Warlord at Command 2000 Met Architect 300 Destroyed A8 300 Destroyed A6 400 Destroyed A5 500 Destroyed A4 700 Destroyed A3 800 Destroyed A2 1000 Destroyed Architect 15000 Win 3000 Friendly Fire -4719 Cogmind --------- Core Integrity 1099/1850 Matter 285/300 Energy 327/380 System Corruption 0% Temperature Warm (142) Movement Hovering (15) Location To Fleet Rendezvous Parts ------- > --- POWER (2) -------- Zero-point Reactor Zero-point Reactor > --- PROPULSION (7) --- Cooled Antigrav System Cooled Antigrav System Cooled Antigrav System Cooled Antigrav System Combat Antigrav System Combat Antigrav System Cooled Linear Gravjet > --- UTILITY (12) ----- Experimental Power Amplifier High-capacity Storage Unit Experimental Targeting Computer Experimental Target Analyzer Experimental Core Analyzer Improved Armor Integrity Analyzer Advanced Particle Accelerator Experimental Weapon Cycler Experimental Reaction Control System Experimental Phase Shifter Experimental Utility Shielding Centrium Linked Plating > --- WEAPON (4) ------- Sigix Sheargun Sigix Sheargun Sigix Sheargun Sigix Sheargun > --- INVENTORY (20) --- Zero-point Reactor Cooled Antigrav System Combat Antigrav System Combat Antigrav System Combat Antigrav System Combat Antigrav System Combat Antigrav System Combat Antigrav System Experimental Energy Well (600) ST Field Compressor Experimental Powered Armor Experimental Powered Armor Experimental Shield Generator Sigix Shearcannon Sigix Broadsword Sigix Corpse Peak State ------------ > --- POWER ------------ Zero-point Reactor Zero-point Reactor > --- PROPULSION ------- Cooled Antigrav System Cooled Antigrav System Cooled Antigrav System Cooled Antigrav System Combat Antigrav System Combat Antigrav System Cooled Linear Gravjet > --- UTILITY ---------- High-capacity Storage Unit Experimental Targeting Computer Experimental Target Analyzer Experimental Core Analyzer Improved Armor Integrity Analyzer Advanced Particle Accelerator Experimental Weapon Cycler Experimental Reaction Control System Experimental Phase Shifter Experimental Utility Shielding Architect God Chip A Architect God Chip D > --- WEAPON ----------- Sigix Sheargun Sigix Sheargun Sigix Broadsword > --- INVENTORY -------- Zero-point Reactor Combat Antigrav System Combat Antigrav System Combat Antigrav System Combat Antigrav System Combat Antigrav System Combat Antigrav System Advanced Power Amplifier Experimental Energy Well Centrium Linked Plating Experimental Powered Armor Experimental Powered Armor Experimental Powered Armor Experimental Shield Generator High-powered Transdimensional Reconstructor High-powered Transdimensional Reconstructor Sigix Sheargun Sigix Sheargun Sigix Shearcannon [Rating: 257] Favorites ----------- Power Light Antimatter Reactor Engine Light Deuterium Engine Power Core Light Neutrino Core Reactor Light Antimatter Reactor Propulsion Combat Antigrav System Treads Light Treads Leg Improved Titanium Leg Hover Unit Combat Antigrav System Flight Unit Improved VTOL Module Utility Hacking Suite Device Experimental Sensor Array Storage Huge Storage Unit Processor Experimental Core Analyzer Hackware Hacking Suite Protection Experimental Utility Shielding Artifact Spacefold Activator Weapon Sigix Sheargun Energy Gun Sigix Sheargun Energy Cannon Light EM Pulse Cannon Ballistic Gun 8R-AWN's Boregun Ballistic Cannon Assault Cannon Launcher Heavy Missile Launcher Special Weapon Plasma Cutter Impact Weapon Shock Maul Slashing Weapon Sigix Broadsword Piercing Weapon Vortex Lance Special Melee Weapon Improved Datajack Build | -11 -10 -10 -9 -9 -9 -8 -8 -8 -8 -8 -8 -8 -7 -7 -7 -7 -6 -6 -6 -6 -6 -6 -6 -6 -5 -5 -5 -5 -5 -5 -5 -4 -4 -4 -4 -4 -4 -4 -3 -3 -3 -2 -2 -2 -1 -1 -1 ------- Run | Jun Mat Min Mat Min Exi Min Mat Gar Mat Gar Mat Sto Fac Low Low Dat Pro Fac Was Fac Low Low Zio Dee Pro Fac Was Fac Upp Upp Zhi Pro Fac Was Fac Upp Upp War Pro Res Tes Res Qua Sec Acc Com Ac0 Slots Evolved 18 | . . . 2 . . . 2 . . . . . 2 . . . . 2 . . . . . . . 2 . . . . . . 2 . . . . . . 2 . 2 . . 2 . . Power 1 | . . . . . . . . . . . . . . . . . . . . . . . . . . . . . . . . . 1 . . . . . . . . . . . . . . Propulsion 5 | . . . 1 . . . . . . . . . 2 . . . . . . . . . . . . 1 . . . . . . . . . . . . . . . . . . 1 . . Utility 10 | . . . 1 . . . 2 . . . . . . . . . . 2 . . . . . . . 1 . . . . . . 1 . . . . . . 2 . 1 . . . . . Weapon 2 | . . . . . . . . . . . . . . . . . . . . . . . . . . . . . . . . . . . . . . . . . . 1 . . 1 . . Parts Attached 1985 | 7 10 . 38 . 32 9 50 10 31 29 36 50 97 9 6 1 18 32 3 91 . 8 6 31 2 62 2 81 11 11 8 6 121 9 123 20 6 26 51 56 95 21 108 200 122 175 65 Power 122 | 1 1 . 6 . 2 . 3 . 2 . 2 2 6 . 1 . . . . 1 . . . 4 . 3 . 3 . . 3 . 7 3 9 . 2 2 8 8 3 . 14 12 6 8 . Engine 13 | 1 . . 5 . 1 . . . . . 1 2 . . . . . . . . . . . . . . . . . . . . 1 1 . . . . 1 . . . . . . . . Core 23 | . 1 . 1 . . . 2 . 1 . . . 6 . 1 . . . . 1 . . . 2 . 2 . 1 . . . . 1 . 1 . 1 . . 1 . . . . . 1 . Reactor 86 | . . . . . 1 . 1 . 1 . 1 . . . . . . . . . . . . 2 . 1 . 2 . . 3 . 5 2 8 . 1 2 7 7 3 . 14 12 6 7 . Propulsion 208 | 2 3 . 5 . 4 1 14 . 6 1 6 11 20 . . . . 2 . 9 . 4 2 6 . 11 . 6 1 . . 1 13 . 11 3 . 7 3 5 8 1 5 7 14 11 5 Treads 56 | 2 3 . 5 . 4 1 13 . 5 1 6 6 10 . . . . . . . . . . . . . . . . . . . . . . . . . . . . . . . . . . Leg 11 | . . . . . . . . . . . . . 5 . . . . . . . . 1 1 1 . . . . . . . . . . . . . 1 . . . . . 1 1 . . Wheel . | . . . . . . . . . . . . . . . . . . . . . . . . . . . . . . . . . . . . . . . . . . . . . . . . Hover 136 | . . . . . . . . . . . . 3 5 . . . . 2 . 9 . 2 1 5 . 11 . 6 1 . . 1 13 . 11 3 . 6 3 5 8 1 5 6 13 11 5 Flight 5 | . . . . . . . 1 . 1 . . 2 . . . . . . . . . 1 . . . . . . . . . . . . . . . . . . . . . . . . . Utility 1084 | 2 4 . 7 . 9 . 17 . 13 3 15 13 23 6 2 1 10 29 1 61 . 1 3 10 2 40 1 50 8 1 3 . 82 3 67 7 1 9 20 35 48 13 77 127 97 123 40 Device 715 | 1 . . 2 . 2 . 4 . 6 3 8 4 6 2 2 1 9 18 1 51 . 1 3 1 2 27 1 29 4 1 . . 42 2 47 6 1 7 14 27 35 8 68 88 76 86 19 Storage 35 | 1 3 . 1 . 2 . . . . . . 1 1 1 . . 1 3 . 1 . . . 1 . . . 1 . . . . 1 . 3 . . . 1 . 2 . . 3 4 4 . Processor 39 | . 1 . . . . . . . . . . . 1 . . . . 2 . . . . . 1 . 2 . . . . . . 1 1 1 1 . . . 1 . . . 9 4 9 5 Hackware 54 | . . . . . . . 4 . 2 . 3 1 5 . . . . 3 . 4 . . . . . 2 . 4 . . . . 8 . 1 . . . 1 4 2 . . 1 4 3 2 Protection 235 | . . . 4 . 5 . 9 . 5 . 4 7 10 3 . . . 3 . 5 . . . 7 . 9 . 16 4 . 3 . 30 . 15 . . 2 4 3 9 5 9 20 9 21 14 Artifact 6 | . . . . . . . . . . . . . . . . . . . . . . . . . . . . . . . . . . . . . . . . . . . . 6 . . . Weapon 571 | 2 2 . 20 . 17 8 16 10 10 25 13 24 48 3 3 . 8 1 2 20 . 3 1 11 . 8 1 22 2 10 2 5 19 3 36 10 3 8 20 8 36 7 12 54 5 33 20 Energy Gun 149 | . . . . . . . 3 6 6 13 9 9 4 1 . . . . . 1 . . . 3 . . . . . . . . 4 . . . 1 . . 3 14 3 6 25 4 20 14 Energy Cannon 57 | . . . 11 . 2 . . . . . . 1 5 . . . . . . 4 . . . 1 . . . 2 . . . . 1 . 17 2 . . 1 . 3 . 1 . . 4 2 Ballistic Gun 77 | 2 1 . 2 . 8 4 9 . 1 . . 2 1 1 1 . 2 . 2 4 . . . 6 . 4 1 7 1 3 2 3 6 1 . . 1 . . . . . . 1 . . 1 Ballistic Cannon 57 | . 1 . . . . . . . 2 . . 1 16 . . . . . . 1 . 1 . . . . . 4 . 1 . . 1 1 9 4 . 3 8 . . . . . . 3 1 Launcher 35 | . . . 1 . 4 4 . . . . . 3 6 . . . 2 . . 1 . 1 . . . 2 . 3 . 2 . 1 1 . 3 . . . . . 1 . . . . . . Special Weapon 1 | . . . . . . . . . . . . . . . . . . . . . . . . . . . . . . . . . . . . . . . . . . . . . . 1 . Impact Weapon 36 | . . . . . . . . . . . . 2 16 1 1 . 3 . . 2 . . . . . 2 . 6 1 2 . . . . . . . . . . . . . . . . . Slashing Weapon 151 | . . . 6 . 3 . 4 4 1 12 4 6 . . 1 . 1 1 . 5 . 1 1 . . . . . . 2 . 1 5 1 7 4 1 4 11 5 18 4 5 25 1 5 2 Piercing Weapon 4 | . . . . . . . . . . . . . . . . . . . . . . . . . . . . . . . . . . . . . . 1 . . . . . 3 . . . Special Melee Weapon 4 | . . . . . . . . . . . . . . . . . . . . 2 . . . 1 . . . . . . . . 1 . . . . . . . . . . . . . . Unidentified Prototypes 93 | . . . 4 . 1 . 3 . 3 . . 13 2 . . . . . . . . . 1 12 . . . . . . 3 . . . 2 . . 6 1 1 8 1 3 12 1 7 9 Corrupted Parts 1 | . . . . . . . . . . . . . 1 . . . . . . . . . . . . . . . . . . . . . . . . . . . . . . . . . . System Corruption 7 | . . . . . . . . . . . . . 7 . . . . . . . . . . . . . . . . . . . . . . . . . . . . . . . . . . Parts Lost 74 | . 1 . 6 . 3 . 5 . 2 1 1 . 17 . . . . . . . . . . . . 4 . 3 1 . . . 13 . 8 . . . . 1 . . 2 3 . . 3 Power 20 | . . . 2 . 1 . . . . . . . 4 . . . . . . . . . . . . 2 . . . . . . 4 . 6 . . . . . . . . 1 . . . Propulsion 20 | . . . 2 . 1 . 2 . 1 . 1 . 5 . . . . . . . . . . . . 1 . 2 . . . . 4 . 1 . . . . . . . . . . . . Utility 23 | . . . 1 . 1 . 2 . 1 1 . . 4 . . . . . . . . . . . . 1 . 1 1 . . . 3 . 1 . . . . 1 . . 1 2 . . 2 Weapon 11 | . 1 . 1 . . . 1 . . . . . 4 . . . . . . . . . . . . . . . . . . . 2 . . . . . . . . . 1 . . . 1 Highest Loss Streak 5 | . 1 . 2 . 3 . 2 . 1 1 1 . 3 . . . . . . . . . . . . 2 . 2 1 . . . 5 . 1 . . . . 1 . . 1 1 . . 1 To Critical Strikes 2 | . . . . . 2 . . . . . . . . . . . . . . . . . . . . . . . . . . . . . . . . . . . . . . . . . . Average Slot Usage (%) 93 | . 99 100 99 100 90 88 93 81 87 80 89 95 96 95 96 100 100 99 100 98 86 86 92 91 93 91 100 97 99 100 100 99 90 100 96 89 88 91 90 99 99 96 87 91 94 86 98 Engine 1 | . 2 . 7 11 7 . . . . . 1 9 1 . . . . . . . . . . . . . . . . . . . 1 4 1 . . . . . . . . . . . . Core 2 | . 11 14 3 . . . 4 . 1 . . . 4 7 7 7 7 6 6 5 6 6 6 5 6 . 5 1 . . . . 1 2 1 . . . . . . . . . . . . Reactor 4 | . . . . . 1 11 4 9 7 9 7 . . . . . . . . . . . . . . 4 . 3 5 5 5 5 4 2 7 10 9 10 9 9 9 8 5 7 7 5 8 Treads 13 | . 27 28 33 33 33 33 26 27 26 27 26 26 27 . . . . . . . . . . . . . . . . . . . . . . . . . . . . . . . . . . Hover 15 | . . . . . . . . . . . . . . 38 38 38 38 32 33 32 33 32 33 32 33 33 35 33 34 35 35 34 27 31 30 31 31 31 31 27 27 26 25 25 27 27 28 Device 7 | . 3 . 9 11 5 . . . 4 10 4 . 2 6 5 7 7 7 6 7 20 19 20 8 13 6 11 5 5 5 5 5 6 5 6 9 9 9 9 11 6 12 10 17 15 18 20 Storage 7 | . 14 14 11 11 11 11 9 9 9 9 9 9 7 7 7 7 7 8 6 6 6 6 6 6 6 5 5 5 5 5 5 5 5 5 5 5 5 5 5 4 4 4 4 4 4 2 4 Processor 6 | . 10 14 1 . . . . . . . . . . 7 7 7 7 6 6 6 6 6 6 12 13 11 11 11 11 11 11 11 10 14 10 10 10 10 10 13 13 8 8 8 8 13 14 Hackware 12 | . . . . . . . 16 18 15 9 25 19 21 7 7 7 7 17 26 21 6 6 6 6 6 14 11 19 16 11 11 11 21 21 21 15 15 15 15 16 21 17 17 12 15 3 . Protection 6 | . . . 10 11 9 11 14 9 7 7 5 16 5 7 8 7 7 4 . 2 . . . 4 . 3 5 2 4 11 11 11 3 . 1 . . . . 4 4 5 4 4 3 3 7 Energy Gun 2 | . . . . . . . 1 7 3 8 8 1 . 3 . . . . . . . . . . . . . . . . . . 2 . . . . . . . . . . 1 7 7 13 Energy Cannon 1 | . . . 14 22 7 . . . . . . . . . . . . . . 1 . . . . . . . . . . . . . . 3 . . . . . . . . . . . . Ballistic Gun 3 | . 26 14 2 . 9 21 14 . . . . . . 3 2 . . . 8 . . . . 11 13 . 11 1 5 7 1 7 . . . . . . . . . . . . . . . Ballistic Cannon 1 | . 1 14 . . . . . . 6 . . 1 6 . . . . . . . . . . . . . . 3 . . 4 . . 5 . . . 1 3 . . . . . . . . Impact Weapon 1 | . . . . . . . . . . . . 5 5 3 6 7 6 6 2 5 6 6 6 . . 4 . 4 4 . . . . . . . . . . . . . . . . . . Slashing Weapon 3 | . . . 5 . . . 1 1 5 . . 5 . . 1 7 7 5 2 3 . . 5 . . . . . . 1 5 1 4 4 4 4 5 6 3 8 8 12 8 6 4 2 . Naked Turns . | . . . . . . . . . . . . . . . . . . . . . . . . . . . . . . . . . . . . . . . . . . . . . . . . Heaviest Build 138 | 13 90 90 104 104 114 114 124 117 117 118 122 115 115 51 51 39 43 55 61 71 65 68 68 74 73 75 61 84 69 72 73 75 77 88 88 88 78 90 92 94 109 95 132 138 106 133 134 Greatest Support 129 | 40 40 40 60 60 60 60 60 60 62 62 64 60 116 80 80 65 80 80 80 80 80 80 65 80 80 96 84 96 81 96 81 81 96 96 96 91 81 99 93 99 94 96 96 96 110 127 129 Greatest Overweight (x) 4 | . 2 2 1 1 1 1 2 1 2 1 2 1 2 . . . . . . 1 . 1 1 2 1 1 1 4 1 . . 1 1 1 2 . . 1 1 1 1 1 1 1 1 1 1 Average Overweight (x) . | . 1 2 1 1 . 1 1 1 1 1 1 1 . . . . . . . . . . . . . . . . . . . . . . . . . . . . . . . . . . . Largest Inventory Capacity 25 | 8 25 25 25 25 25 25 25 25 25 25 25 25 25 15 15 15 15 20 20 20 20 20 20 20 20 20 20 20 20 20 20 20 20 20 20 20 20 20 20 20 20 20 20 20 25 20 20 Average Capacity 21 | 7 20 25 25 25 22 25 25 25 25 25 25 25 24 15 15 15 15 15 20 20 20 20 20 20 20 20 20 20 20 20 20 20 20 20 20 20 20 20 20 20 20 20 20 20 20 13 20 Most Carried 25 | 4 19 24 25 25 25 25 25 25 25 25 25 25 25 15 15 15 15 16 19 20 20 20 20 20 20 20 20 20 20 20 20 20 20 20 20 20 20 20 20 20 20 20 20 20 20 20 20 Average Carried 20 | 3 15 23 23 24 21 25 23 24 22 24 23 23 24 14 14 15 15 14 18 19 19 19 19 19 20 18 19 19 19 19 19 20 18 19 19 19 20 19 19 19 19 19 19 19 19 10 19 Final Capacity 25 | 8 25 25 25 25 25 25 25 25 25 25 25 25 15 15 15 15 15 20 20 20 20 20 20 20 20 20 20 20 20 20 20 20 20 20 20 20 20 20 20 20 20 20 20 20 20 20 20 Final Carried 25 | 4 18 24 25 25 25 25 25 25 25 25 25 25 14 15 15 15 15 16 19 20 20 20 20 20 20 20 20 20 20 20 20 20 20 20 20 20 20 20 20 20 20 20 19 20 20 20 18 Class Distribution -------------------- 25% | Hacker-Mutant 22% | Scavenger-Mutant 16% | Machinist-Mutant 10% | Wizard-Mutant 8% | Mutant 4% | Commander-Mutant 3% | Alien-Mutant Dominant Class ---------------- Mutant | -10/Materials Mutant | -10/Mines Scavenger-Mutant | -9/Materials Scavenger-Mutant | -9/Mines Mutant | -9/Exiles Mutant | -8/Mines Scavenger-Mutant | -8/Materials Scavenger-Mutant | -8/Garrison Scavenger-Mutant | -8/Materials Scavenger-Mutant | -8/Garrison Hacker-Mutant | -8/Materials Commander-Mutant | -8/Storage Hacker-Mutant | -7/Factory Machinist-Mutant | -7/Lower Caves Machinist-Mutant | -7/Lower Caves Machinist-Mutant | -7/Data Miner Machinist-Mutant | -6/Proximity Caves Hacker-Mutant | -6/Factory Hacker-Mutant | -6/Waste Hacker-Mutant | -6/Factory Machinist-Mutant | -6/Lower Caves Machinist-Mutant | -6/Lower Caves Machinist-Mutant | -6/Zion Machinist-Mutant | -6/Deep Caves Machinist-Mutant | -5/Proximity Caves Hacker-Mutant | -5/Factory Scavenger-Mutant | -5/Waste Hacker-Mutant | -5/Factory Hacker-Mutant | -5/Upper Caves Machinist-Mutant | -5/Upper Caves Machinist-Mutant | -5/Zhirov Machinist-Mutant | -4/Proximity Caves Hacker-Mutant | -4/Factory Hacker-Mutant | -4/Waste Hacker-Mutant | -4/Factory Machinist-Mutant | -4/Upper Caves Machinist-Mutant | -4/Upper Caves Machinist-Mutant | -4/Warlord Machinist-Mutant | -3/Proximity Caves Machinist-Mutant | -3/Research Wizard-Mutant | -3/Testing Wizard-Mutant | -2/Research Wizard-Mutant | -2/Quarantine Machinist-Gladiator | -2/Section 7 Wizard-Mutant | -1/Access Alien-Mutant | -1/Command Scavenger-Gunner | -1/Access_0 Resources | -11 -10 -10 -9 -9 -9 -8 -8 -8 -8 -8 -8 -8 -7 -7 -7 -7 -6 -6 -6 -6 -6 -6 -6 -6 -5 -5 -5 -5 -5 -5 -5 -4 -4 -4 -4 -4 -4 -4 -3 -3 -3 -2 -2 -2 -1 -1 -1 ----------- Run | Jun Mat Min Mat Min Exi Min Mat Gar Mat Gar Mat Sto Fac Low Low Dat Pro Fac Was Fac Low Low Zio Dee Pro Fac Was Fac Upp Upp Zhi Pro Fac Was Fac Upp Upp War Pro Res Tes Res Qua Sec Acc Com Ac0 Matter Collected 27478 | 300 473 246 394 . 836 281 1156 100 666 250 388 645 2083 131 128 . 291 484 218 1066 . 70 70 550 344 841 282 1227 269 319 207 145 1453 426 2097 412 109 288 1038 490 1086 210 1045 1279 614 2118 353 Remotely 158 | . . . . . . . . . . . . . 153 . . . . . . . . . . . . . . . . . . . . . . . . . . . . . . . . 5 . Salvage Created 55762 | 114 601 172 1086 129 680 352 1799 736 1375 1190 1469 1640 3116 26 143 . 12 950 630 1225 52 15 . 464 356 1370 1113 2547 163 338 254 24 1626 1285 2993 212 70 4 1603 1448 2778 119 2616 4238 3082 5946 3601 Parts 2592 | 7 43 11 78 10 75 18 110 29 85 54 77 64 136 . 7 . 2 50 11 24 1 3 . 37 9 42 32 78 4 12 5 3 62 16 164 4 2 1 42 68 131 6 112 217 177 304 169 Haulers Intercepted 32 | . 1 . 1 . . . 2 . 2 . . 5 1 . . . . 1 . 3 . . . . . . . 6 . . . . . . 1 . . . . 1 1 . . 2 5 . . Recyclers Shooed 21 | 1 1 . 1 . . . 1 . . . . . 3 . . . . . . 2 . . . . . 1 . 2 . . . . 3 . 4 . . . . . 1 . . . . 1 . Parts Field Recycled . | . . . . . . . . . . . . . . . . . . . . . . . . . . . . . . . . . . . . . . . . . . . . . . . . Retrieved Matter . | . . . . . . . . . . . . . . . . . . . . . . . . . . . . . . . . . . . . . . . . . . . . . . . . Parts Self-Destructed 275 | . . . . . . . . . . . . . . . . . 5 . . . 26 31 . . 41 . . . . 10 5 . . . . 53 10 . 94 . . . . . . . . Prevented 3 | . . . . . . . . . . . . . . . . . . . . . 2 . . . . . . . 1 . . . . . . . . . . . . . . . . . . Kills | -11 -10 -10 -9 -9 -9 -8 -8 -8 -8 -8 -8 -8 -7 -7 -7 -7 -6 -6 -6 -6 -6 -6 -6 -6 -5 -5 -5 -5 -5 -5 -5 -4 -4 -4 -4 -4 -4 -4 -3 -3 -3 -2 -2 -2 -1 -1 -1 ------- Run | Jun Mat Min Mat Min Exi Min Mat Gar Mat Gar Mat Sto Fac Low Low Dat Pro Fac Was Fac Low Low Zio Dee Pro Fac Was Fac Upp Upp Zhi Pro Fac Was Fac Upp Upp War Pro Res Tes Res Qua Sec Acc Com Ac0 Combat Hostiles Destroyed 604 | . 13 4 20 4 1 13 24 14 23 27 26 17 70 1 1 . 1 4 2 6 1 1 . 6 5 10 4 23 2 8 . 4 15 5 32 4 . 1 17 6 22 1 28 47 21 33 37 Melee 142 | . . . . . . . . . 3 . 1 3 8 . 1 . . 1 . 4 . 1 . . . 3 . 1 1 . . . . . 1 . . . . 6 21 1 28 44 14 . . Guns 217 | . 12 3 . . 1 3 24 14 10 27 20 8 5 1 . . . . 2 . . . . 6 5 3 4 3 . 3 . . 9 . . . . . . . 1 . . 3 7 33 10 Cannons 132 | . 1 1 13 2 . . . . 10 . . . 25 . . . . . . . . . . . . . . 6 . . . . 2 5 18 4 . 1 17 . . . . . . . 27 AOE 73 | . . . 4 2 . 10 . . . . 1 . 15 . . . 1 2 . 2 . . . . . 1 . 12 . 5 . 4 3 . 11 . . . . . . . . . . . . Classes Destroyed 34 | 2 6 . 1 1 3 3 1 . 1 1 1 . 1 . 1 . . . 1 . . . . 1 . 1 . . 1 . . . 1 . 1 . . 1 1 . . . . 3 . 1 . Worker 82 | . 2 1 2 1 . 1 4 . 2 . 1 2 9 . . . . 3 . 11 . . . . . 3 . 10 . . . . 1 . 10 . . . . 2 3 . 2 2 5 5 . Builder 72 | . . . . . . . 5 . 1 . 1 . 6 . . . . 1 . 2 . . . . . 8 . 10 . . . . 1 . 10 . . . 1 2 5 . 5 7 7 . . Tunneler 13 | 1 2 . 1 . . 1 . . . . . 1 1 . . . . 2 . . . . . . . 1 . . . . . . . . 2 . . . . . . 1 . . . . . Hauler 32 | . 1 . 1 . . . 2 . 2 . . 5 1 . . . . 1 . 3 . . . . . . . 6 . . . . . . 1 . . . . 1 1 . . 2 5 . . Recycler 71 | 1 . . . . . . 3 . 4 . 1 3 3 . . . . 4 . 3 . . . . . 4 . 9 . . . . 5 . 6 . . . 2 4 7 . 1 2 2 7 . Mechanic 7 | . . . . . . . . . 1 . . . . . . . . . . 1 . . . . . 1 . . . . . . 1 . 2 . . . . . . . 1 . . . . Operator 17 | . 3 . 4 . . . 1 . 2 . . 1 . . . . . 1 . . . . . . . . . . . . . . . . . . . . . . 2 . 1 . 2 . . Drone 1 | . . . . . . . . . . . . . . . . . . . . . . . . . . . . . . . . . 1 . . . . . . . . . . . . . . Turret 1 | . . . . . 1 . . . . . . . . . . . . . . . . . . . . . . . . . . . . . . . . . . . . . . . . . . Watcher 88 | . 3 . 5 . . . 5 . 4 . 5 2 2 . . . . 2 . 4 . . . . . 5 . 4 . . . . 6 . 9 . . . 2 8 3 1 3 3 8 4 . Swarmer 102 | . 5 . 3 . . 3 3 . 8 7 5 1 11 1 . . 1 2 . 4 . . . . . . . 14 . 5 . 4 5 . 6 . . . 1 . 5 . . . . 8 . Cutter 3 | . . . . . . . . . . . . . . . . . . . . . . . . . . . . . . . . . . . 3 . . . . . . . . . . . . Saboteur 1 | . . . . . . . . . . . . . . . . . . . . . . . . . . . . . . . . . . . . . . 1 . . . . . . . . . Grunt 192 | . 8 4 13 3 . 7 10 13 12 15 12 5 34 . . . . . . . 1 . . . 4 2 . 3 . 2 . . 1 . 5 2 . . 3 2 8 1 13 3 6 . . Brawler 9 | . . . . . . 1 . . . . . . 4 . . . . . . . . . . . . . . . . 1 . . . . . 2 . . . . . . 1 . . . . Duelist 14 | . . . . . . 1 1 2 . 1 1 . 4 . . . . . . . . . . . . . . . . . . . . . 1 . . . 3 . . . . . . . . Protector 2 | . . . . . . . . . . . 1 . 1 . . . . . . . . . . . . . . . . . . . . . . . . . . . . . . . . . . Sentry 66 | . . . 4 . . . 7 . 3 2 6 10 8 . . . . 1 . 1 . . . . 1 1 . 1 . . . . 2 . 2 . . . 5 2 . . . 6 2 2 . Demolisher 1 | . . . . 1 . . . . . . . . . . . . . . . . . . . . . . . . . . . . . . . . . . . . . . . . . . . Specialist 2 | . . . . . . . . . . 1 . . . . . . . . . . . . . . . . . . . . . . . . . . . . . . 1 . . . . . . Hunter 25 | . . . . . . 1 3 . . 1 1 1 2 . . . . . . . . . . . . . . . . . . . . . 4 . . . 1 . . . 3 2 2 4 . Programmer 111 | . . . . . . . . . . . . . 6 . . . . 1 . 1 . . . . . 6 . 5 2 . . . 6 . 11 . . . 2 2 8 . 11 28 11 11 . Heavy 2 | . . . . . . . . . . . . . . . . . . . . . . . . . . 1 . . . . . . . . . . . . . . . . . . . 1 . Behemoth 2 | . . . . . . . . . . . . . . . . . . . . . . . . . . . . . . . . . . . . . . . 2 . . . . . . . . Compactor 11 | . . . . . . . . . . . . . . . . . . . 2 . . . . . . . 4 . . . . . . 5 . . . . . . . . . . . . . S7 Guard 3 | . . . . . . . . . . . . . . . . . . . . . . . . . . . . . . . . . . . . . . . . . . . . 3 . . . M Guard 2 | . . . . . . . . . . . . . . . . . . . . . . . . . . . . . . . . . . . . . . . . . . . . . . 2 . Enhanced Grunt 22 | . . . . . . . . . . . . . . . . . . . . . . . . 1 . . . . . . . . . . . . . . . . . . . . . . 21 Enhanced Sentry 1 | . . . . . . . . . . . . . . . . . . . . . . . . . . . . . . . . . . . . . . . . . . . . . . . 1 Enhanced Hunter 8 | . . . . . . . . . . . . . . . . . . . . . . . . . . . . . . . . . . . . . . . . . . . . . . . 8 Combat Programmer 2 | . . . . . . . . . . . . . . . . . . . . . . . . . . . . . . . . . . . . . . . . . . . . . . 2 . Striker 1 | . . . . . . . . . . . . . . . . . . . . . . . . . . . . . . . . . . . . . . . . . . . . 1 . . . Executioner 2 | . . . . . . . . . . . . . . . . . . . . . . . . . . . . . . . . . . . . . . . . . . . . 2 . . . Alpha 7 2 | . . . . . . . . . . . . . . . . . . . . . . . . . . . . . . . . . . . . . . . . . . . . 2 . . . Zionite 8 | . . . . . 8 . . . . . . . . . . . . . . . . . . . . . . . . . . . . . . . . . . . . . . . . . . Z-Light 6 | . . . . . . . . . . . . . . . . . . . . . . . . 6 . . . . . . . . . . . . . . . . . . . . . . . Decomposer 3 | . . . . . . . . . . . . . . . . . . . . . . . . . . . . . . . . . . . . . 3 . . . . . . . . . . Packrat 1 | . . . . . . . . . . . . . . . . . . . . . . . . . . . . . . 1 . . . . . . . . . . . . . . . . . Samaritan 1 | . . . . . . . . . . . . . . . . . . . . . . . . . . . . . 1 . . . . . . . . . . . . . . . . . . Master Thief 2 | . . . . . . . . . . . . . . . 1 . . . . . . 1 . . . . . . . . . . . . . . . . . . . . . . . . . Assembled 7 | . . . . . 7 . . . . . . . . . . . . . . . . . . . . . . . . . . . . . . . . . . . . . . . . . . Wasp 1 | . . . . . . . . . . . . . . . . . . . . 1 . . . . . . . . . . . . . . . . . . . . . . . . . . . Thug 2 | . . . . . . . . . . . . 1 . . . . . . . . . . . . . . . . . . . . . . . . . . . . . . . . . 1 . Fireman 1 | . . . . . . . . . . . . . . . . . . . . . . . . . . . . . . . . . . . . . . . . . . . . . . 1 . Best Kill Streak 20 | 1 5 2 6 3 4 3 6 3 5 4 6 3 7 1 1 . 1 5 2 3 1 1 . 2 2 5 3 20 2 5 . 4 5 5 9 2 . 1 3 3 3 1 4 6 4 5 12 Combat Bots Only 12 | . 4 2 5 3 1 3 3 3 3 4 6 3 5 1 1 . 1 2 2 2 1 1 . 2 2 3 3 12 2 5 . 4 5 5 7 2 . 1 3 2 3 1 4 4 4 4 12 Max Kills in Single Turn 7 | 1 1 1 2 3 7 3 1 1 2 1 2 2 5 1 1 . 1 3 2 2 1 1 . 1 1 1 1 6 1 2 . 2 2 1 5 1 1 1 1 1 1 1 1 1 2 2 2 Gunslinging . | . . . . . . . . . . . . . . . . . . . . . . . . . . . . . . . . . . . . . . . . . . . . . . . . Exploded 4 | . . . 2 2 . 3 . . . . 1 . 4 . . . 1 2 . 2 . . . . . 1 . 3 . 2 . 2 2 . 3 . . . . . . . . . . . . Melee 1 | . . . . . . . . . 1 . 1 1 1 . 1 . . 1 . 1 . 1 . . . 1 . 1 1 . . . . . 1 . . . . 1 1 1 1 1 1 . . Uniques/NPCs Destroyed 15 | . . . . . 4 . . . . . . 1 . . . . . . . . . . . 1 . . . . . . . . . . . . . . . . . . . . . 2 7 8R-AWN (-9/Exiles) EX-DEC (-9/Exiles) EX-BIN (-9/Exiles) EX-HEX (-9/Exiles) 01-MTF (-8/Storage) Z-Imprinter (-6/Deep Caves) MAIN.C Shell (-1/Command) MAIN.C (-1/Command) Architect (-1/Access_0) A2 (-1/Access_0) A6 (-1/Access_0) A8 (-1/Access_0) A4 (-1/Access_0) A5 (-1/Access_0) A3 (-1/Access_0) Combat | -11 -10 -10 -9 -9 -9 -8 -8 -8 -8 -8 -8 -8 -7 -7 -7 -7 -6 -6 -6 -6 -6 -6 -6 -6 -5 -5 -5 -5 -5 -5 -5 -4 -4 -4 -4 -4 -4 -4 -3 -3 -3 -2 -2 -2 -1 -1 -1 -------- Run | Jun Mat Min Mat Min Exi Min Mat Gar Mat Gar Mat Sto Fac Low Low Dat Pro Fac Was Fac Low Low Zio Dee Pro Fac Was Fac Upp Upp Zhi Pro Fac Was Fac Upp Upp War Pro Res Tes Res Qua Sec Acc Com Ac0 Damage Taken 38563 | . 424 263 580 226 934 420 1292 282 1061 576 714 724 5183 87 82 . 183 72 . 778 24 . . 30 47 1520 . 1526 381 119 . 58 2228 . 2423 148 . 37 188 412 1019 317 2802 4186 1292 2457 3468 Core 4049 | . 71 68 52 . . 6 150 29 96 69 60 76 612 27 . . . 22 . 93 . . . . 24 202 . 230 57 15 . 28 270 . 367 38 . . . 18 125 42 352 397 48 136 269 Absorbed by Shields 3143 | . . . . . . . . . . 13 . . . . . . . . . . . . . . . . . . . . . . . . 24 . . . . 98 214 . 71 862 404 821 636 Redirected to Shielding 1736 | . . . . . . . . . . . . . . . . . . . . . . . . . . 67 . 33 124 49 . . 283 . 43 . . . . 24 73 57 212 152 58 182 379 Regen/Repaired (Parts) 17464 | . 79 . . . . . 398 . 710 . 142 516 273 . . . . 211 . 839 . . . . . 164 . 417 . . . . 602 . 801 . . 246 . 594 394 3 1779 3170 1333 2622 2171 Core Remaining (%) 55 | 100 . 44 . . . 85 . . . . . 12 . . . . 8 . . . . . . . 83 . . . . . . 46 . . . . . . 35 . 89 . . 44 . . 59 Volleys Fired 1496 | 5 66 10 56 6 61 20 92 . 71 . . 26 127 . 5 . 10 . 14 16 . . . 20 27 24 18 66 5 9 . 5 44 21 101 18 . 1 66 . 23 8 17 59 40 236 103 Largest 4 | 2 2 2 2 2 2 2 2 . 2 . . 1 2 . 1 . 1 . 2 2 . . . 2 2 2 2 2 2 2 . 1 2 1 1 1 . 1 1 . 1 1 1 3 2 4 4 Hottest 400 | 40 55 55 112 112 72 51 56 . 107 . . 36 113 . 30 . 39 . 60 90 . . . 60 60 60 60 155 60 60 . 43 60 66 94 90 . 60 60 . 200 80 80 300 200 400 400 Shots Fired 2804 | 10 132 23 96 12 88 32 188 41 105 97 83 68 192 4 10 . 10 . 28 17 . . . 40 54 38 36 90 10 13 . 5 59 21 102 18 . 1 66 . 23 8 17 101 74 568 224 Gun 2066 | 10 131 11 5 . 86 24 188 41 35 97 83 67 15 4 10 . 7 . 28 10 . . . 40 54 37 36 40 10 8 . . 55 . . . . . . . 20 8 17 101 74 549 165 Cannon 681 | . 1 12 89 12 . . . . 70 . . . 162 . . . . . . 5 . . . . . . . 48 . 2 . . 4 21 98 18 . 1 66 . 3 . . . . 10 59 Launcher 48 | . . . 2 . 2 8 . . . . . 1 15 . . . 3 . . 2 . . . . . 1 . 2 . 3 . 5 . . 4 . . . . . . . . . . . . Special 9 | . . . . . . . . . . . . . . . . . . . . . . . . . . . . . . . . . . . . . . . . . . . . . . 9 . Kinetic 1227 | 10 132 23 5 . 86 24 184 . 71 . . 25 141 1 5 . 7 . 28 10 . . . 40 54 37 36 86 10 10 . . 32 21 56 14 . 1 66 . . . . . . 10 2 Thermal 299 | . . . . . . . 4 26 17 75 25 . 21 . . . . . . 5 . . . . . . . 2 . . . . . . 8 4 . . . . 23 8 17 23 . 41 . Explosive 47 | . . . 2 . 2 8 . . . . . . 15 . . . 3 . . 2 . . . . . 1 . 2 . 3 . 5 . . 4 . . . . . . . . . . . . Electromagnetic 340 | . . . 89 12 . . . 15 17 22 58 43 15 3 5 . . . . . . . . . . . . . . . . . 27 . 34 . . . . . . . . . . . . Slashing 891 | . . . . . . . . . . . . . . . . . . . . . . . . . . . . . . . . . . . . . . . . . . . . 78 74 517 222 Robot Hit Streak 41 | 2 14 21 14 8 6 11 19 36 9 27 21 18 12 3 2 . 2 . 5 3 . . . 4 7 7 18 10 6 6 . 9 16 22 8 10 . 5 13 . 9 . 1 32 6 41 26 Robot Miss Streak 6 | 2 4 2 4 1 4 2 2 2 5 3 3 4 4 2 4 . . . 4 2 . . . 6 3 2 6 2 1 1 . . 5 1 6 3 . . 3 . . . 1 2 4 5 6 Penetration Max 2 | . . . . . 1 . 1 . 1 . . 1 . . 1 . . . 1 . . . . 1 1 1 1 1 1 2 . . 1 1 1 . . . . . . . . . 1 1 1 Secondary Targets 15 | . 1 . . . 1 . 4 . . . . . . . . . . . 1 . . . . . . 1 . 2 . . . . . . . . . . . . . . . . 1 3 1 Max Gunslinging Chain 1 | . 1 . . . 1 . 1 . . . . . . . . . . . 1 . . . . . . 1 . 1 . . . . . . . . . . . . . . . . 1 1 1 Autonomous 314 | . . . . . . . 4 42 27 97 86 42 7 3 6 . . . . . . . . . . . . . . . . . . . . . . . . . . . . . . . . Shots Hit Robots 2751 | 5 92 16 81 9 73 23 138 39 86 84 79 85 175 2 5 . 1 19 15 40 2 2 . 15 19 72 26 92 15 9 9 3 63 18 93 14 3 1 84 54 78 5 130 253 93 389 142 Core Hits 1533 | 2 35 9 29 8 39 29 65 24 53 36 46 33 110 1 3 . 2 13 6 11 . 1 . 11 7 16 8 42 2 12 3 4 33 6 81 9 3 1 59 27 44 3 52 69 54 176 256 Critical Kills 59 | . . . . . 5 . 1 . 2 . . 4 3 . 2 . . . 2 2 . 1 . 6 3 5 4 4 1 1 . . 5 5 3 . . . . . . . . . . . . Critical Parts Destroyed 132 | . 1 . . . 9 . . . . . . 9 22 . 1 . . 2 1 9 . 1 . 6 3 17 1 20 8 5 . . 7 2 8 . . . . . . . . . . . . Critical Strikes 316 | . 1 . 1 . 18 . 2 . 5 . 4 19 29 . 3 . . 2 11 11 . 2 . 12 8 22 14 29 9 6 . . 14 13 15 2 . . 5 2 5 1 12 18 3 5 13 Destroy 139 | . 1 . . . 16 . 2 . 2 . . 9 . . 2 . . . 11 1 . . . 12 8 5 14 9 6 5 . . 12 13 11 . . . . . . . . . . . . Blast 15 | . . . . . . . . . 1 . . . 4 . . . . . . . . . . . . . . 5 . . . . . . . 2 . . 3 . . . . . . . . Corrupt 10 | . . . 1 . . . . . . . 4 2 . . . . . . . . . . . . . . . . . . . . 1 . 2 . . . . . . . . . . . . Smash 84 | . . . . . . . . . . . . 8 25 . 1 . . 2 . 10 . 2 . . . 17 . 15 3 1 . . . . . . . . . . . . . . . . . Sever 59 | . . . . . 2 . . . 2 . . . . . . . . . . . . . . . . . . . . . . . 1 . 2 . . . 2 2 5 1 12 9 3 5 13 Sunder 9 | . . . . . . . . . . . . . . . . . . . . . . . . . . . . . . . . . . . . . . . . . . . . 9 . . . Melee Attacks 2169 | . . . 22 . 49 . 10 7 31 13 4 57 125 3 7 . 15 48 . 149 4 3 10 . . 122 . 115 13 7 13 2 65 . 171 3 3 10 38 111 142 17 188 289 151 144 8 Impact 587 | . . . . . . . . . . . . 36 125 3 6 . 9 19 . 119 4 3 8 . . 122 . 115 13 5 . . . . . . . . . . . . . . . . . Slashing 1540 | . . . 22 . 49 . 10 7 31 13 4 21 . . 1 . 6 29 . 29 . . 2 . . . . . . 2 13 2 63 . 171 3 3 10 38 111 142 17 188 250 151 144 8 Piercing . | . . . . . . . . . . . . . . . . . . . . . . . . . . . . . . . . . . . . . . . . . . . . . . . . Entropic 39 | . . . . . . . . . . . . . . . . . . . . . . . . . . . . . . . . . . . . . . . . . . . . 39 . . . Sneak Attacks 266 | . . . 7 . . . 6 . 7 . . 14 15 . . . . 12 . 22 . . . . . 17 . 26 . 1 . . 11 . 25 . 3 . 2 15 21 1 13 17 21 10 . Combat Hostiles 7 | . . . . . . . . . . . . . 2 . . . . . . . . . . . . . . 1 . . . . . . . . . . . . . . 2 1 1 . . Follow-up Attacks 64 | . . . . . . . . . . . . 2 . . . . . . . 2 . . . . . . . . . . . . . . . . . . 4 2 8 3 16 27 . . . Damage Inflicted 150605 | 70 1198 263 2871 354 2369 1476 3146 1244 2677 2218 2685 3503 10612 61 162 . 236 1767 618 3417 138 98 . 374 362 4638 539 7515 650 1100 795 543 2943 380 7442 757 227 48 4719 2888 5460 320 8494 18202 7838 19198 13990 Guns 41448 | 70 1170 116 25 . 789 306 2707 1244 686 2218 2254 1481 455 61 106 . . . 618 12 . . . 374 362 509 539 515 212 230 . . 1433 . . . . . . . 75 . 37 2268 1384 15562 3630 Cannons 24805 | . 18 130 1585 181 . . . . 1140 . . . 2346 . . . . . . 63 . . . . . . . 1204 . . . . 427 380 3091 757 . 48 3075 . . . . . . . 10360 Explosions 11501 | . . . 501 152 420 1121 . . . . 319 . 2789 . . . 236 388 . 239 . . . . . 274 . 1988 . 591 . 543 158 . 1782 . . . . . . . . . . . . Melee 72286 | . . . 733 . 1160 . 400 . 826 . . 1986 4889 . 56 . . 1379 . 3103 138 98 . . . 3855 . 3808 438 279 795 . 925 . 2569 . 227 . 1644 2888 5385 320 8457 15934 6454 3540 . Ramming 469 | . 10 17 27 21 . 49 39 . 25 . 112 36 133 . . . . . . . . . . . . . . . . . . . . . . . . . . . . . . . . . . Kinetic 20405 | 70 1188 246 25 . 789 306 2580 . 1184 . . 333 1971 . 62 . . . 618 12 . . . 374 362 509 539 1631 212 230 . . 951 380 2022 688 . 48 3075 . . . . . . . . Thermal 6190 | . . . 179 152 . 252 127 755 283 1895 1008 . 552 . . . . . . 63 . . . . . 198 . 199 . . . . 87 . 37 69 . . . . 75 . 37 126 . 96 . Explosive 9687 | . . . 322 . 420 869 . . . . . . 2408 . . . 236 388 . 207 . . . . . 76 . 1877 . 591 . 543 71 . 1679 . . . . . . . . . . . . Electromagnetic 8490 | . . . 1585 181 . . . 489 359 323 1565 1148 659 61 44 . . . . 32 . . . . . . . . . . . . 909 . 1135 . . . . . . . . . . . . Impact 17757 | . . . . . . . . . . . . 1105 4889 . 56 . . 395 . 2696 138 98 . . . 3855 . 3808 438 279 . . . . . . . . . . . . . . . . . Slashing 85118 | . . . 733 . 1160 . 400 . 826 . . 881 . . . . . 984 . 407 . . . . . . . . . . 795 . 925 . 2569 . 227 . 1644 2888 5385 320 8457 15587 7838 19102 13990 Piercing . | . . . . . . . . . . . . . . . . . . . . . . . . . . . . . . . . . . . . . . . . . . . . . . . . Entropic 2489 | . . . . . . . . . . . . . . . . . . . . . . . . . . . . . . . . . . . . . . . . . . . . 2489 . . . Highest Corruption 29 | . 1 1 . . . . . . . . . . 12 12 12 12 12 . 18 18 . . . . . 9 9 9 4 . . . 10 24 29 8 8 8 . 2 2 . 5 4 . . . Average Corruption 7 | . 1 1 . . . . . . . . . . 7 12 12 12 12 . 8 13 . . . . . 3 8 2 1 . . . 5 15 21 8 8 8 . 1 2 . 3 4 . . . Corruption Purged 69 | . . . . . . . . . . . . . . . . . . . . 18 . . . . . 9 . 9 8 . . . . . 25 . . . . . . . . . . . . Corruption Blocked 12 | . . . . . . . . . . . . . . . . . . . . . . . . . . . . 8 . . . . . . . . . . . . . . . . . 4 . Effects 685 | . 2 13 . . . . . . . . . . 105 22 16 1 22 . 4 33 . . . . . 18 3 19 4 . . . 42 5 175 35 26 . . 9 32 . 33 66 . . . Message Errors 189 | . . 2 . . . . . . . . . . 41 6 4 . 3 . 1 9 . . . . . 4 2 3 . . . . 12 2 47 11 2 . . 5 9 . 10 16 . . . Matter Fused 156 | . 1 2 . . . . . . . . . . 23 6 4 . 7 . . 6 . . . . . 7 1 1 1 . . . 11 . 41 10 6 . . 1 8 . 5 15 . . . Heat Flow Errors 90 | . . 3 . . . . . . . . . . 10 1 5 . 3 . . 3 . . . . . 2 . 6 . . . . 8 2 21 4 4 . . 2 5 . 4 7 . . . Energy Discharges 81 | . 1 2 . . . . . . . . . . 12 4 1 1 2 . . 5 . . . . . 2 . 4 2 . . . 3 . 20 4 5 . . . 3 . 3 7 . . . Parts Rejected 12 | . . . . . . . . . . . . . 1 . . . . . . 1 . . . . . . . . . . . . . . 2 . . . . . 1 . 2 5 . . . Parts Fused 3 | . . . . . . . . . . . . . 1 . . . . . . . . . . . . . . . . . . . . . 2 . . . . . . . . . . . . Data Loss (minor) 85 | . . . . . . . . . . . . . 10 2 1 . 3 . 2 8 . . . . . 1 . 3 1 . . . 6 1 17 4 7 . . 1 3 . 6 9 . . . Data Loss (major) 25 | . . 1 . . . . . . . . . . 3 2 1 . . . . . . . . . . 1 . 1 . . . . . . 7 2 1 . . . 2 . 2 2 . . . Misfires 16 | . . 3 . . . . . . . . . . 4 1 . . 1 . . . . . . . . . . . . . . . 1 . 5 . . . . . . . . 1 . . . Alerts 13 | . . . . . . . . . . . . . . . . . 1 . 1 . . . . . . 1 . . . . . . 1 . 3 . 1 . . . 1 . 1 3 . . . Misdirections 8 | . . . . . . . . . . . . . . . . . 1 . . 1 . . . . . . . . . . . . . . 6 . . . . . . . . . . . . Weapon Failures 7 | . . . . . . . . . . . . . . . . . 1 . . . . . . . . . . 1 . . . . . . 4 . . . . . . . . 1 . . . Overload Shots . | . . . . . . . . . . . . . . . . . . . . . . . . . . . . . . . . . . . . . . . . . . . . . . . . Overflow Damage 19481 | . . . 351 . 3 59 67 . 71 . 33 866 2584 . . . . 405 . 1834 78 . . . . 2303 . 2985 236 260 84 41 127 . 719 . . . 140 354 530 74 780 1834 1464 1156 43 Projectiles 752 | . . . 78 . . . . . 27 . . . 132 . . . . . . 121 . . . . . . . 117 . . . . 26 . 150 . . . 58 . . . . . . . 43 Explosions 1061 | . . . 104 . 3 59 . . . . 33 . 101 . . . . 117 . 2 . . . . . 2 . 514 . . . 41 . . 85 . . . . . . . . . . . . Melee 17668 | . . . 169 . . . 67 . 44 . . 866 2351 . . . . 288 . 1711 78 . . . . 2301 . 2354 236 260 84 . 101 . 484 . . . 82 354 530 74 780 1834 1464 1156 . Knockbacks 149 | . 1 3 . . . . . . 19 . 1 . 42 . . . . . . 9 . . . . . 15 . 33 3 . . . 2 . 11 . . . 10 . . . . . . . . Impact 66 | . 1 . . . . . . . . . 1 . 22 . . . . . . 8 . . . . . 15 . 16 3 . . . . . . . . . . . . . . . . . . Kinetic 71 | . . 3 . . . . . . 18 . . . 15 . . . . . . . . . . . . . . 13 . . . . 2 . 10 . . . 10 . . . . . . . . Secondary 12 | . . . . . . . . . 1 . . . 5 . . . . . . 1 . . . . . . . 4 . . . . . . 1 . . . . . . . . . . . . Self-Inflicted Damage 872 | . . . 83 12 . 58 . . . . 68 . 483 . . . 38 . . . . . . . . . . . . . . . 80 . 50 . . . . . . . . . . . . Shots 24 | . . . 2 1 . 2 . . . . 1 . 13 . . . 2 . . . . . . . . . . . . . . . 1 . 2 . . . . . . . . . . . . Rammed 50 | . 6 2 6 1 . 5 5 . 5 . 12 4 4 . . . . . . . . . . . . . . . . . . . . . . . . . . . . . . . . . . Targets Rammed 58 | . 7 2 6 2 . 6 6 . 5 . 13 5 6 . . . . . . . . . . . . . . . . . . . . . . . . . . . . . . . . . . Kicked 2 | . . . . . . . . . . . . . 2 . . . . . . . . . . . . . . . . . . . . . . . . . . . . . . . . . . Crushed 6 | . 1 . . 1 . 1 1 . . . 1 1 . . . . . . . . . . . . . . . . . . . . . . . . . . . . . . . . . . . Highest Temperature 336 | . 20 254 288 48 24 12 189 2 129 5 4 13 272 240 336 . 249 . . 213 . . . . . 110 . 273 . 12 . . 229 135 273 239 238 260 3 229 253 8 128 181 158 158 138 Average Temperature 76 | . 2 68 52 25 14 5 50 2 49 3 2 7 67 77 120 . 115 . . 65 . . . . . 43 . 68 . 7 . . 86 73 61 84 113 123 3 106 63 8 67 101 85 107 82 Received Heat Transfer 6025 | . 201 132 180 18 . 99 486 180 495 261 270 291 1704 27 12 . 9 18 . 45 . . . 9 . 72 . 117 . 9 . . 147 . 283 9 . . 21 75 122 45 170 192 92 54 180 Effects 4 | . . . 1 . . . . . . . . . . . 1 . 2 . . . . . . . . . . . . . . . . . . . . . . . . . . . . . . Shutdowns 1 | . . . . . . . . . . . . . . . 1 . . . . . . . . . . . . . . . . . . . . . . . . . . . . . . . . Energy Bleed 1 | . . . 1 . . . . . . . . . . . . . . . . . . . . . . . . . . . . . . . . . . . . . . . . . . . . Interference 2 | . . . . . . . . . . . . . . . . . 2 . . . . . . . . . . . . . . . . . . . . . . . . . . . . . . Siege Activations . | . . . . . . . . . . . . . . . . . . . . . . . . . . . . . . . . . . . . . . . . . . . . . . . . Robots Corrupted 19 | . . . 3 . . . . . . . 4 3 2 . . . . . . . . . . . . . . . . . . . 2 . 5 . . . . . . . . . . . . Combat Hostiles 15 | . . . 3 . . . . . . . 4 3 2 . . . . . . . . . . . . . . . . . . . 1 . 2 . . . . . . . . . . . . Parts Fried 181 | . . . 11 . . . . 4 . 4 7 19 31 . . . . 1 . 25 . . . . . 26 . 34 . . . . 10 . 9 . . . . . . . . . . . . Impact Corruptions 275 | . . . . . . . . . 1 . . 19 60 . . . . 4 . 48 2 1 . . . 70 . 55 10 4 . . . . 1 . . . . . . . . . . . . Robots Melted . | . . . . . . . . . . . . . . . . . . . . . . . . . . . . . . . . . . . . . . . . . . . . . . . . Combat Hostiles . | . . . . . . . . . . . . . . . . . . . . . . . . . . . . . . . . . . . . . . . . . . . . . . . . Parts Melted 13 | . . . . . . . . 1 . 5 5 . 2 . . . . . . . . . . . . . . . . . . . . . . . . . . . . . . . . . . Heat Transferred 7158 | . . . 150 200 . 300 148 925 444 2257 1139 . 681 . . . . . . 100 . . . . . 150 . 200 . . . . 50 . 37 74 . . . . 74 . 37 111 . 81 . Parts Sabotaged . | . . . . . . . . . . . . . . . . . . . . . . . . . . . . . . . . . . . . . . . . . . . . . . . . Parts Stolen 2 | . . . . . . . . . . . . . . . . . . . . . 2 . . . . . . . . . . . . . . . . . . . . . . . . . . Parts Stripped . | . . . . . . . . . . . . . . . . . . . . . . . . . . . . . . . . . . . . . . . . . . . . . . . . Power Chain Reactions 9 | . . . 3 . . . . . . . 3 . 2 . . . . . . . . . . . . . . . . . . . 1 . . . . . . . . . . . . . . Missiles Intercepted . | . . . . . . . . . . . . . . . . . . . . . . . . . . . . . . . . . . . . . . . . . . . . . . . . Alert | -11 -10 -10 -9 -9 -9 -8 -8 -8 -8 -8 -8 -8 -7 -7 -7 -7 -6 -6 -6 -6 -6 -6 -6 -6 -5 -5 -5 -5 -5 -5 -5 -4 -4 -4 -4 -4 -4 -4 -3 -3 -3 -2 -2 -2 -1 -1 -1 ------- Run | Jun Mat Min Mat Min Exi Min Mat Gar Mat Gar Mat Sto Fac Low Low Dat Pro Fac Was Fac Low Low Zio Dee Pro Fac Was Fac Upp Upp Zhi Pro Fac Was Fac Upp Upp War Pro Res Tes Res Qua Sec Acc Com Ac0 Peak Influence 1891 | 10 248 52 386 245 . 227 246 555 273 1357 975 318 1891 . . . . 166 51 203 . . . . . 719 247 1413 . . . . 606 223 1239 . . . . 428 581 384 437 790 867 1198 . Initial 661 | . 6 12 1 120 . . 44 42 270 177 661 15 65 . . . . 28 51 35 . . . . . 119 247 172 . . . . . 208 142 . . . . 162 88 326 137 244 460 554 . Average 279 | 3 44 19 186 60 . 69 89 347 158 919 292 151 536 . . . . 60 51 97 . . . . . 555 247 362 . . . . 239 207 641 . . . . 124 236 298 305 327 357 870 . Maximum Alert Level 5 | . 1 . 1 1 . 1 1 2 1 4 3 1 5 . . . . . . 1 . . . . . 3 1 4 . . . . 2 1 4 . . . . 2 2 1 2 3 3 4 . Low Security (%) 50 | 100 99 100 37 81 . 94 97 32 63 2 67 77 33 . . . . 100 100 98 . . . . . 2 . 13 . . . . 36 . 10 . . . . 87 53 2 26 37 29 . . Level 1 21 | . . . 62 18 . 5 2 20 36 4 1 22 17 . . . . . . 1 . . . . . 13 100 69 . . . . 51 100 14 . . . . 10 26 97 52 27 32 . . Level 2 9 | . . . . . . . . 47 . 17 7 . 21 . . . . . . . . . . . . 73 . 7 . . . . 11 . 33 . . . . 2 19 . 20 28 33 3 . Level 3 7 | . . . . . . . . . . 33 23 . 9 . . . . . . . . . . . . 11 . 5 . . . . . . 30 . . . . . . . . 7 4 21 . Level 4 10 | . . . . . . . . . . 42 . . 11 . . . . . . . . . . . . . . 4 . . . . . . 11 . . . . . . . . . . 74 . Level 5 . | . . . . . . . . . . . . . 5 . . . . . . . . . . . . . . . . . . . . . . . . . . . . . . . . . . High Security . | . . . . . . . . . . . . . . . . . . . . . . . . . . . . . . . . . . . . . . . . . . . . . . . . Max Security . | . . . . . . . . . . . . . . . . . . . . . . . . . . . . . . . . . . . . . . . . . . . . . . . . Squads Dispatched 211 | . 5 1 6 . . . 1 . 7 . 5 1 25 . . . . 4 . 14 . . . . . 12 . 16 . . . . 11 . 21 . . . 1 13 8 2 12 15 14 17 . Investigation 70 | . 2 1 3 . . . 1 . 2 . 1 . 7 . . . . 1 . 6 . . . . . 4 . 5 . . . . 6 . 8 . . . 1 9 2 1 1 2 6 1 . Extermination 60 | . . . . . . . . . . . . . 6 . . . . 1 . 2 . . . . . 2 . 3 . . . . 4 . 5 . . . . 3 4 . 6 11 6 7 . Reinforcement 46 | . 3 . 3 . . . . . 2 . . 1 7 . . . . 2 . 2 . . . . . 4 . 6 . . . . 1 . 4 . . . . 1 2 1 3 1 1 2 . Assault 25 | . . . . . . . . . . . 1 . 5 . . . . . . . . . . . . 2 . 2 . . . . . . 4 . . . . . . . 2 1 1 7 . Garrison 10 | . . . . . . . . . 3 . 3 . . . . . . . . 4 . . . . . . . . . . . . . . . . . . . . . . . . . . . Intercept . | . . . . . . . . . . . . . . . . . . . . . . . . . . . . . . . . . . . . . . . . . . . . . . . . Searches Triggered 3 | . . . . . . . . . . . . . . . . . . . . . . . . . . . . . . . . . 2 . 1 . . . . . . . . . . . . Data Miner Redirects 36 | . . . . . . . . . . . . . . . . . . 1 . . . . . . . 3 . 4 . . . . 3 . 6 . . . . 6 1 . 1 2 4 5 . Construction Impeded 8 | . . . . . . . . . . . . . 1 . . . . . . . . . . . . 2 . 2 . . . . . . 1 . . . . 1 . . 1 . . . . Haulers Reinforced 4 | . . . . . . . . . . . . . 2 . . . . 1 . . . . . . . . . . . . . . . . . . . . . . 1 . . . . . . Active Scanning Responses . | . . . . . . . . . . . . . . . . . . . . . . . . . . . . . . . . . . . . . . . . . . . . . . . . Cargo Convoy Interrupts 1 | . . . . . . . . . . . . . . . . . . . . . . . . . . . . 1 . . . . . . . . . . . . . . . . . . . Stealth | -11 -10 -10 -9 -9 -9 -8 -8 -8 -8 -8 -8 -8 -7 -7 -7 -7 -6 -6 -6 -6 -6 -6 -6 -6 -5 -5 -5 -5 -5 -5 -5 -4 -4 -4 -4 -4 -4 -4 -3 -3 -3 -2 -2 -2 -1 -1 -1 --------- Run | Jun Mat Min Mat Min Exi Min Mat Gar Mat Gar Mat Sto Fac Low Low Dat Pro Fac Was Fac Low Low Zio Dee Pro Fac Was Fac Upp Upp Zhi Pro Fac Was Fac Upp Upp War Pro Res Tes Res Qua Sec Acc Com Ac0 Distress Signals 70 | . 1 . . . . . 1 . 6 . 4 2 3 . . . . 1 . 1 . . . . . 2 . 2 . . . . 3 . 7 . . 2 . 1 . 5 . 5 2 22 . Communications Jammed 178 | . . . . . . . . . . . 19 . . . . . . . . 6 . . . . . 22 . 1 . . . . 2 . 25 . . . 23 4 . . 17 30 28 1 . Distress Signals 165 | . . . . . . . . . . . 17 . . . . . . . . 6 . . . . . 12 . 1 . . . . 2 . 25 . . . 23 4 . . 17 29 28 1 . Times Spotted 1182 | . 27 5 48 5 11 13 36 14 51 25 38 26 101 9 4 . 12 16 6 40 11 17 . 14 18 31 3 34 2 10 . 1 55 5 99 16 7 11 35 24 38 6 39 61 52 54 52 Peak Tracking Total 28 | . 3 3 5 3 6 3 4 3 5 4 5 4 6 8 3 . 5 7 6 5 4 5 . 5 5 7 1 7 2 5 . 2 8 4 13 9 4 11 6 4 5 4 5 8 5 9 28 Tactical Retreats 107 | . 1 . 4 . 4 . . . 1 1 1 1 9 5 1 . 2 1 . 4 1 . . . 1 5 . 4 . 3 . . 13 1 20 2 . . 1 . 4 1 1 2 6 2 5 Traps | -11 -10 -10 -9 -9 -9 -8 -8 -8 -8 -8 -8 -8 -7 -7 -7 -7 -6 -6 -6 -6 -6 -6 -6 -6 -5 -5 -5 -5 -5 -5 -5 -4 -4 -4 -4 -4 -4 -4 -3 -3 -3 -2 -2 -2 -1 -1 -1 ------- Run | Jun Mat Min Mat Min Exi Min Mat Gar Mat Gar Mat Sto Fac Low Low Dat Pro Fac Was Fac Low Low Zio Dee Pro Fac Was Fac Upp Upp Zhi Pro Fac Was Fac Upp Upp War Pro Res Tes Res Qua Sec Acc Com Ac0 Traps Triggered 59 | . 3 . . . . . . 4 . 13 . 2 1 . . . . 2 . 2 . . . . . 5 . . . . . . 5 . 7 2 . 1 . 1 1 . . . 2 8 . Indirectly . | . . . . . . . . . . . . . . . . . . . . . . . . . . . . . . . . . . . . . . . . . . . . . . . . Trap Hack Attempts 58 | . . . . . . . . . . . . . . . . . . . . 50 . . . . . . . . . . . . 8 . . . . . . . . . . . . . . Triggered 1 | . . . . . . . . . . . . . . . . . . . . 1 . . . . . . . . . . . . . . . . . . . . . . . . . . . Disarmed 16 | . . . . . . . . . . . . . . . . . . . . 11 . . . . . . . . . . . . . . . . . . . . . . . 5 . . . Reprogrammed 34 | . . . . . . . . . . . . . . . . . . . . 3 . . . . . . . 4 . . . . 15 . . . . . . . 12 . . . . . . Reused 18 | . . . . . . . . . . . . . . . . . . . . . . . . . . . . 1 . . . . 5 . 3 . . . . . 9 . . . . . . Traps Extracted 13 | . . . . . . . . . . . . . . . . . . . . 3 . . . . . . . . . . . . 10 . . . . . . . . . . . . . . Installed 10 | . . . . . . . . . . . . . . . . . . . . . . . . . . . . . . . . . 7 . 3 . . . . . . . . . . . . Triggered 28 | . . . 1 . . . . . . . . . . . . . . . . . 2 . . . . . . 2 . . . . 5 . 3 . . 6 . . 9 . . . . . . Most Traps Carried 6 | . . . . . . . . . . . . . . . . . . . . 3 3 3 3 3 3 3 3 3 3 3 3 3 6 3 3 . . . . . . . . . . . . Machines | -11 -10 -10 -9 -9 -9 -8 -8 -8 -8 -8 -8 -8 -7 -7 -7 -7 -6 -6 -6 -6 -6 -6 -6 -6 -5 -5 -5 -5 -5 -5 -5 -4 -4 -4 -4 -4 -4 -4 -3 -3 -3 -2 -2 -2 -1 -1 -1 ---------- Run | Jun Mat Min Mat Min Exi Min Mat Gar Mat Gar Mat Sto Fac Low Low Dat Pro Fac Was Fac Low Low Zio Dee Pro Fac Was Fac Upp Upp Zhi Pro Fac Was Fac Upp Upp War Pro Res Tes Res Qua Sec Acc Com Ac0 Machines Disabled 193 | . . . 1 1 19 6 1 3 4 6 2 9 14 . . . . 2 . 3 . . . 3 1 4 . 23 1 . 2 . 16 . 20 . . . 4 . 8 . 6 12 1 7 14 Max in Single Turn 11 | . . . 1 1 3 5 1 1 1 1 1 1 4 . . . . 2 . 2 . . . 1 . 2 . 5 1 . 1 . 11 . 5 . . . 1 . 1 . 1 1 1 2 1 Garrison Access 31 | . . . . . . . . . . . 1 1 3 . . . . 2 . 4 . . . . . 1 . 1 . . . . 3 . 3 . . . . 3 1 2 1 . 5 . . Garrison Relay 7 | . . . . . . . . 2 . 5 . . . . . . . . . . . . . . . . . . . . . . . . . . . . . . . . . . . . . Phase Generator 1 | . . . . . . . . . . . . . . . . . . . . . . . . . . . . . . . . . . . . . . . . . . . . . . 1 . Machines Repaired . | . . . . . . . . . . . . . . . . . . . . . . . . . . . . . . . . . . . . . . . . . . . . . . . . Machines Sabotaged . | . . . . . . . . . . . . . . . . . . . . . . . . . . . . . . . . . . . . . . . . . . . . . . . . Overloaded Fab Kills . | . . . . . . . . . . . . . . . . . . . . . . . . . . . . . . . . . . . . . . . . . . . . . . . . Hacking | -11 -10 -10 -9 -9 -9 -8 -8 -8 -8 -8 -8 -8 -7 -7 -7 -7 -6 -6 -6 -6 -6 -6 -6 -6 -5 -5 -5 -5 -5 -5 -5 -4 -4 -4 -4 -4 -4 -4 -3 -3 -3 -2 -2 -2 -1 -1 -1 --------- Run | Jun Mat Min Mat Min Exi Min Mat Gar Mat Gar Mat Sto Fac Low Low Dat Pro Fac Was Fac Low Low Zio Dee Pro Fac Was Fac Upp Upp Zhi Pro Fac Was Fac Upp Upp War Pro Res Tes Res Qua Sec Acc Com Ac0 Machines Accessed 411 | . 9 1 12 1 2 . 16 3 14 4 13 13 31 . . 4 . 17 . 33 1 1 1 . . 12 . 23 3 . 4 . 29 . 27 3 1 13 3 22 16 3 17 19 26 13 1 Terminals 215 | . 6 . 8 . . . 10 3 8 4 9 9 16 . . . . 7 . 15 1 . . . . 4 . 14 1 . . . 14 . 14 . 1 . 1 10 8 . 12 16 13 11 . Fabricators 39 | . . . . . . . . . . . . . 6 . . . . . . 6 . . . . . 2 . 4 . . . . 6 . 4 . . . 1 4 2 1 . . 3 . . Repair Stations 42 | . 1 . . . . . 2 . 2 . 1 1 2 . . . . 3 . 4 . . . . . 3 . 2 . . . . 4 . 3 . . . . 3 2 . 2 2 4 1 . Recycling Units 29 | . 2 . 2 . . . 1 . 2 . 1 2 . . . . . 4 . 3 . . . . . 2 . 2 . . . . 2 . 1 . . . 1 2 . . . . 1 1 . Scanalyzers 19 | . . . 2 . . . 2 . 1 . 1 . 4 . . . . 1 . 1 . . . . . . . . . . . . . . 1 . . . . . 3 . 2 1 . . . Garrison Access 34 | . . . . . . . 1 . 1 . 1 1 3 . . . . 2 . 4 . . . . . 1 . 1 . . . . 3 . 4 . . . . 3 1 2 1 . 5 . . Total Hacks 1516 | . 29 1 39 1 24 . 81 8 47 8 55 43 110 . . 30 . 58 . 162 1 1 5 . . 45 . 103 3 . 16 . 125 . 96 4 1 31 10 88 59 7 54 51 78 40 2 Successful 1043 | . 14 1 19 1 24 . 63 4 31 3 31 33 60 . . 30 . 41 . 104 1 1 5 . . 34 . 67 3 . 16 . 101 . 62 4 1 31 7 47 53 5 38 33 48 25 2 Failed 469 | . 14 . 20 . . . 18 4 16 5 24 9 50 . . . . 17 . 58 . . . . . 11 . 35 . . . . 24 . 34 . . . 3 41 5 2 16 18 30 15 . Catastrophic 46 | . . . 1 . . . 1 1 1 2 3 . 5 . . . . 1 . 5 . . . . . 2 . 2 . . . . 1 . 7 . . . . 4 1 . 2 1 4 2 . Database Lockouts 4 | . 1 . . . . . . . . . . 1 . . . . . . . . . . . . . . . 1 . . . . . . . . . . . . 1 . . . . . . Manual 648 | . 20 . 20 . 1 . 36 3 24 4 26 21 33 . . . . 22 . 90 . . 1 . . 24 . 47 . . . . 57 . 38 . . 1 2 47 19 1 29 27 28 27 . Terminals 827 | . 22 . 27 . . . 42 8 28 8 41 26 54 . . . . 21 . 90 1 . . . . 21 . 68 1 . . . 68 . 59 . 1 . 1 46 31 . 41 43 44 35 . Fabricators 155 | . . . . . . . . . . . . . 22 . . . . . . 26 . . . . . 6 . 16 . . . . 28 . 9 . . . 6 21 6 4 . . 11 . . Repair Stations 187 | . 2 . . . . . 14 . 8 . 2 9 11 . . . . 10 . 21 . . . . . 11 . 11 . . . . 15 . 19 . . . . 11 12 . 10 7 12 2 . Recycling Units 86 | . 5 . 2 . . . 2 . 7 . 3 7 . . . . . 16 . 10 . . . . . 6 . 5 . . . . 7 . 3 . . . 3 4 . . . . 3 3 . Scanalyzers 90 | . . . 10 . . . 22 . 3 . 8 . 19 . . . . 7 . 7 . . . . . . . . . . . . . . 2 . . . . . 9 . 2 1 . . . Garrison Access 54 | . . . . . . . 1 . 1 . 1 1 4 . . . . 4 . 8 . . . . . 1 . 3 . . . . 7 . 4 . . . . 6 1 3 1 . 8 . . Terminal Hacks 460 | . 5 1 5 1 24 . 20 4 11 3 10 15 19 . . 30 . 7 . 34 1 1 5 . . 7 . 33 3 . 16 . 36 . 22 4 1 31 1 15 21 . 20 23 13 16 2 Record 71 | . . . . . 23 . . . . . . . . . . 11 . . . . 1 . . . . . . . 2 . 5 . . . . 2 1 22 . . . . 2 . . . 2 Part Schematic 46 | . . . . . . . 4 . . . . . 2 . . 11 . . . 6 . . 5 . . . . 1 . . 3 . 3 . . . . . . 3 1 . 3 3 1 . . Robot Schematic 6 | . . . . . . . . . . . . . . . . 5 . . . 1 . . . . . . . . . . . . . . . . . . . . . . . . . . . Robot Analysis 23 | . 2 . 1 . . . 3 . . . . 1 2 . . . . . . 1 . . . . . . . 1 . . 4 . 2 . . . . . . 1 1 . 1 . 2 1 . Prototype ID Bank 18 | . . . . . . . 1 . . . . . . . . 3 . . . 1 . . . . . . . . . . 4 . . . . . . 8 . . . . . 1 . . . Open Door 20 | . . 1 . 1 . . . 1 . 1 . 4 . . . . . . . . . 1 . . . . . . 1 . . . . . . 2 . 1 1 . . . . 5 . 1 . Level Access Points 5 | . . . . . . . . . . . . . . . . . . . . 1 . . . . . . . 1 . . . . 1 . . . . . . . 1 . 1 . . . . Branch Access Points 8 | . . . . . . . 1 . . . . . 1 . . . . 1 . 1 . . . . . . . 1 . . . . 1 . 1 . . . . 1 . . . . . . . Emergency Access Points 9 | . . . . . . . . . . . . 1 1 . . . . . . 1 . . . . . . . . . . . . 2 . . . . . . . 1 . 2 . . 1 . Machine Index 7 | . . . . . . . . . . . . . . . . . . 1 . . . . . . . 1 . 1 . . . . . . 1 . . . . 1 1 . 1 . . . . Terminal Index 12 | . . . . . . . . . . . . 1 1 . . . . 1 . 1 . . . . . . . 1 . . . . 1 . 1 . . . . . 1 . 1 1 1 1 . Fabricator Index 5 | . . . . . . . . . . . . . . . . . . . . . . . . . . 1 . 1 . . . . 1 . 1 . . . . . . . . . 1 . . Repair Station Index 8 | . . . . . . . . . . . . . . . . . . . . 1 . . . . . 1 . 1 . . . . 1 . 1 . . . . . . . 1 1 . 1 . Recycling Unit Index 4 | . . . . . . . . . . . . . . . . . . . . 1 . . . . . . . . . . . . 1 . . . . . . . . . . . . 2 . Scanalyzer Index 3 | . . . . . . . . . . . . . 1 . . . . . . 1 . . . . . . . . . . . . . . . . . . . . . . 1 . . . . Garrison Index 4 | . . . . . . . . . . . . . . . . . . . . 1 . . . . . . . . . . . . 1 . . . . . . . . . . 1 1 . . Alert Level 38 | . . . 2 . . . 5 . 4 . 3 4 3 . . . . . . 3 . . . . . . . 4 . . . . . . 3 . . . . 2 1 . . 2 2 . . Unreport Threat 38 | . . . 1 . . . 2 . 3 . 6 2 3 . . . . . . . . . . . . . . 2 . . . . . . 6 . . . . 2 1 . 1 5 2 2 . Locate Traps 37 | . 2 . . . . . 2 . 2 . . . 1 . . . . 1 . 2 . . . . . 2 . 7 . . . . 5 . 4 . . . . 1 4 . 2 1 . 1 . Disarm Traps 3 | . . . . . . . . . . . . . . . . . . . . 2 . . . . . . . . . . . . . . . . . . . . . . . 1 . . . Reprogram Traps 5 | . . . . . . . . . . . . . . . . . . . . . . . . . . . . 1 . . . . 2 . . . . . . . 2 . . . . . . Maintenance Status 1 | . . . . . . . . . . . . . . . . . . . . . . . . . . . . 1 . . . . . . . . . . . . . . . . . . . Assault Status 1 | . . . . . . . . . . . . . 1 . . . . . . . . . . . . . . . . . . . . . . . . . . . . . . . . . . Recall Investigation 5 | . . . . . . . . . . . . . . . . . . . . 2 . . . . . . . . . . . . 2 . . . . . . 1 . . . . . . . Recall Extermination 10 | . . . . . . . . . . . . . 1 . . . . 1 . 2 . . . . . . . 1 . . . . 1 . . . . . . 1 1 . 1 . 1 . . Recall Reinforcements 6 | . . . . . . . . . . . . . 1 . . . . . . . . . . . . 1 . . . . . . 1 . 1 . . . . . 2 . . . . . . Recall Assault 2 | . . . . . . . . . . . . . . . . . . . . . . . . . . . . . . . . . . . 1 . . . . . . . 1 . . . . Hauler Manifests 20 | . 1 . 1 . . . 1 . 1 . 1 1 1 . . . . 1 . 1 . . . . . . . 4 . . . . 1 . . . . . . 1 1 . 1 2 1 . . Registered Components 2 | . . . . . . . . . . . . 1 . . . . . . . . . . . . . . . . . . . . 1 . . . . . . . . . . . . . . Zone Layout 35 | . . . . . . . 1 . 1 . . . . . . . . 1 . 5 . . . . . 1 . 5 . . . . 9 . 2 . . . . 1 3 . 1 . 1 4 . Garrison Registry 2 | . . . . . . . . 1 . 1 . . . . . . . . . . . . . . . . . . . . . . . . . . . . . . . . . . . . . Patrol Navigation 2 | . . . . . . . . 1 . 1 . . . . . . . . . . . . . . . . . . . . . . . . . . . . . . . . . . . . . Security Stations 1 | . . . . . . . . 1 . . . . . . . . . . . . . . . . . . . . . . . . . . . . . . . . . . . . . . . EX-Prototype ID Bank 1 | . . . . . 1 . . . . . . . . . . . . . . . . . . . . . . . . . . . . . . . . . . . . . . . . . . Disengage Seal 2 | . . . . . . . . . . . . . . . . . . . . . . . . . . . . . . . . . . . . . . . . . . . . . . 2 . Fabricator Hacks 93 | . . . . . . . . . . . . . 11 . . . . . . 16 . . . . . 4 . 8 . . . . 19 . 6 . . . 4 10 5 2 . . 8 . . Network Status 7 | . . . . . . . . . . . . . 1 . . . . . . 1 . . . . . . . . . . . . 1 . . . . . . 1 1 1 . . 1 . . Load Schematic 52 | . . . . . . . . . . . . . 6 . . . . . . 9 . . . . . 2 . 6 . . . . 11 . 4 . . . 2 5 2 1 . . 4 . . Build 34 | . . . . . . . . . . . . . 4 . . . . . . 6 . . . . . 2 . 2 . . . . 7 . 2 . . . 2 4 2 . . . 3 . . Repair Station Hacks 157 | . 2 . . . . . 13 . 7 . 2 8 6 . . . . 6 . 20 . . . . . 11 . 9 . . . . 11 . 15 . . . . 10 12 . 8 5 10 2 . Scan Component 84 | . 1 . . . . . 7 . 4 . 1 4 4 . . . . 3 . 10 . . . . . 6 . 5 . . . . 6 . 9 . . . . 5 6 . 4 3 5 1 . Repair 73 | . 1 . . . . . 6 . 3 . 1 4 2 . . . . 3 . 10 . . . . . 5 . 4 . . . . 5 . 6 . . . . 5 6 . 4 2 5 1 . Recycling Unit Hacks 16 | . 1 . . . . . . . 2 . 1 1 . . . . . 4 . 1 . . . . . 1 . 1 . . . . 1 . . . . . 1 1 . . . . 1 . . Report Inventory 10 | . 1 . . . . . . . 2 . 1 1 . . . . . 2 . . . . . . . . . . . . . . 1 . . . . . . 1 . . . . 1 . . Retrieve Components 6 | . . . . . . . . . . . . . . . . . . 2 . 1 . . . . . 1 . 1 . . . . . . . . . . 1 . . . . . . . . Scanalyzer 81 | . . . 10 . . . 20 . 3 . 8 . 16 . . . . 7 . 7 . . . . . . . . . . . . . . 2 . . . . . 8 . . . . . . Insert Component 40 | . . . 5 . . . 9 . 1 . 4 . 8 . . . . 2 . 5 . . . . . . . . . . . . . . 1 . . . . . 5 . . . . . . Analyze 41 | . . . 5 . . . 11 . 2 . 4 . 8 . . . . 5 . 2 . . . . . . . . . . . . . . 1 . . . . . 3 . . . . . . Garrison Access Hacks 32 | . . . . . . . 1 . 1 . 1 1 2 . . . . 2 . 4 . . . . . 1 . . . . . . 4 . 3 . . . . 3 1 2 1 . 5 . . Unlock Access 2 | . . . . . . . 1 . 1 . . . . . . . . . . . . . . . . . . . . . . . . . . . . . . . . . . . . . . Seal Access 29 | . . . . . . . . . . . 1 1 2 . . . . 2 . 4 . . . . . 1 . . . . . . 3 . 3 . . . . 3 1 2 1 . 5 . . Coupler Status 1 | . . . . . . . . . . . . . . . . . . . . . . . . . . . . . . . . . 1 . . . . . . . . . . . . . . Unauthorized Hacks 204 | . 6 . 4 . . . 9 . 7 . 9 8 6 . . . . 15 . 22 . . . . . 10 . 16 . . . . 30 . 14 . . . 1 8 6 1 9 5 11 7 . Terminals 122 | . 3 . 2 . . . 8 . 3 . 7 4 2 . . . . 6 . 13 . . . . . 4 . 10 . . . . 17 . 11 . . . . 5 4 . 7 4 7 5 . Track 14 | . . . . . . . . . . . . . . . . . . 1 . 2 . . . . . 1 . 2 . . . . 6 . . . . . . . 1 . . . . 1 . Assimilate 23 | . 1 . . . . . . . . . . . . . . . . 1 . 6 . . . . . . . . . . . . 3 . 3 . . . . 2 1 . . 1 4 1 . Botnet 70 | . 2 . 2 . . . 7 . 3 . 6 3 2 . . . . 2 . 4 . . . . . 2 . 6 . . . . 5 . 6 . . . . 2 2 . 7 3 3 3 . Detonate 3 | . . . . . . . . . . . . . . . . . . 1 . . . . . . . . . 1 . . . . 1 . . . . . . . . . . . . . . Disrupt 1 | . . . . . . . . . . . . . . . . . . . . . . . . . . . . . . . . . . . 1 . . . . . . . . . . . . Operators 10 | . . . . . . . 1 . . . 1 1 . . . . . 1 . 1 . . . . . 1 . 1 . . . . 2 . . . . . . 1 . . . . . . . Search 1 | . . . . . . . . . . . . . . . . . . . . . . . . . . . . . . . . . . . 1 . . . . . . . . . . . . Fabricators 27 | . . . . . . . . . . . . . 3 . . . . . . 5 . . . . . 1 . 3 . . . . 6 . 2 . . . 1 2 1 1 . . 2 . . Prioritize 10 | . . . . . . . . . . . . . 1 . . . . . . 1 . . . . . 1 . . . . . . 2 . 1 . . . 1 1 1 . . . 1 . . Haulers 1 | . . . . . . . . . . . . . . . . . . . . 1 . . . . . . . . . . . . . . . . . . . . . . . . . . . Recompile 16 | . . . . . . . . . . . . . 2 . . . . . . 3 . . . . . . . 3 . . . . 4 . 1 . . . . 1 . 1 . . 1 . . Repair Stations . | . . . . . . . . . . . . . . . . . . . . . . . . . . . . . . . . . . . . . . . . . . . . . . . . Recycling Units 47 | . 3 . 2 . . . 1 . 4 . 2 4 . . . . . 9 . 4 . . . . . 5 . 2 . . . . 6 . . . . . . 1 . . . . 2 2 . Monitor 1 | . . . . . . . . . . . . . . . . . . . . . . . . . . 1 . . . . . . . . . . . . . . . . . . . . . Reject 17 | . 1 . . . . . . . 2 . 1 2 . . . . . 3 . 2 . . . . . 2 . 1 . . . . 2 . . . . . . . . . . . . 1 . Recyclers 7 | . . . . . . . . . . . . . . . . . . 2 . . . . . . . 1 . . . . . . 2 . . . . . . 1 . . . . 1 . . Mask 18 | . . . . . . . 1 . 2 . 1 2 . . . . . 4 . 2 . . . . . 1 . 1 . . . . 2 . . . . . . . . . . . 1 1 . Tunnel 4 | . 2 . 2 . . . . . . . . . . . . . . . . . . . . . . . . . . . . . . . . . . . . . . . . . . . . Scanalyzers 4 | . . . . . . . . . . . . . . . . . . . . . . . . . . . . . . . . . . . . . . . . . 1 . 2 1 . . . Researchers 4 | . . . . . . . . . . . . . . . . . . . . . . . . . . . . . . . . . . . . . . . . . 1 . 2 1 . . . Garrison Access 4 | . . . . . . . . . . . . . 1 . . . . . . . . . . . . . . 1 . . . . 1 . 1 . . . . . . . . . . . . Reprogram 1 | . . . . . . . . . . . . . . . . . . . . . . . . . . . . . . . . . . . 1 . . . . . . . . . . . . Watchers 1 | . . . . . . . . . . . . . . . . . . . . . . . . . . . . . . . . . 1 . . . . . . . . . . . . . . Jam 2 | . . . . . . . . . . . . . 1 . . . . . . . . . . . . . . 1 . . . . . . . . . . . . . . . . . . . Data Cores Recovered 7 | . . . . . . . 1 . . . 1 1 . . . . . . . 1 . . . . . . . . . . . . . . . . . . . . . . 1 . 2 . . Used 4 | . . . . . . . . . . . . 1 . . . . . . . 1 . . . . . . . . . . . . . . . . . . . . . . 1 . 1 . . Hacking Detections 295 | . 8 . 10 . . . 12 2 10 4 10 8 26 . . . . 13 . 20 . . . . . 11 . 20 1 . . . 23 . 21 . . . 2 20 14 1 14 13 22 10 . Full Trace Events 43 | . . . 1 . . . 1 . 1 . 1 . 4 . . . . 1 . 3 . . . . . 4 . 1 . . . . 2 . 5 . . . 1 8 2 . 1 2 5 . . Feedback Events 3 | . . . . . . . . . 1 . . . . . . . . . . . . . . . . . . . . . . . . . . . . . . 1 . . . 1 . . . Hackware Fried 3 | . . . . . . . . . 1 . . . . . . . . . . . . . . . . . . . . . . . . . . . . . . 1 . . . 1 . . . Feedback Blocked 1 | . . . . . . . . . . . . . . . . . . . . . . . . . . . . . . . . . . . . . . . . 1 . . . . . . . Robot Schematics Acquired 8 | . . . . . . . . . . . . . . . . 5 . . . 1 . . 2 . . . . . . . . . . . . . . . . . . . . . . . . Robots Built . | . . . . . . . . . . . . . . . . . . . . . . . . . . . . . . . . . . . . . . . . . . . . . . . . Authchips . | . . . . . . . . . . . . . . . . . . . . . . . . . . . . . . . . . . . . . . . . . . . . . . . . Time . | . . . . . . . . . . . . . . . . . . . . . . . . . . . . . . . . . . . . . . . . . . . . . . . . Total Robot Build Rating . | . . . . . . . . . . . . . . . . . . . . . . . . . . . . . . . . . . . . . . . . . . . . . . . . Part Schematics Acquired 96 | . . . 4 . . . 12 . 1 . 4 . 8 . . 11 . 2 . 8 . . 20 . . . . 1 . . 3 . 3 . 1 . . . . 3 2 . 9 3 1 . . Parts Built 42 | . . . . . . . . . . . . . 5 . . . . . . 8 . . . . . 2 . 3 . . . . 8 . 2 . . . 3 6 2 . . . 3 . . Authchips 15 | . . . . . . . . . . . . . 2 . . . . . . 3 . . . . . . . 2 . . . . 5 . . . . . 1 1 . . . . 1 . . Time 1644 | . . . . . . . . . . . . . 182 . . . . . . 238 . . . . . 79 . 98 . . . . 292 . 148 . . . 67 180 161 . . . 199 . . Total Part Build Rating 286 | . . . . . . . . . . . . . 34 . . . . . . 46 . . . . . 12 . 22 . . . . 54 . 15 . . . 15 48 14 . . . 26 . . Parts Repaired 72 | . 1 . . . . . 6 . 3 . 1 4 2 . . . . 3 . 10 . . . . . 4 . 4 . . . . 5 . 6 . . . . 5 6 . 4 2 5 1 . Time 3435 | . 13 . . . . . 400 . 114 . 40 234 63 . . . . 122 . 744 . . . . . 256 . 251 . . . . 210 . 326 . . . . 156 186 . 118 62 114 26 . Parts Recycled . | . . . . . . . . . . . . . . . . . . . . . . . . . . . . . . . . . . . . . . . . . . . . . . . . Recycled Matter . | . . . . . . . . . . . . . . . . . . . . . . . . . . . . . . . . . . . . . . . . . . . . . . . . Retrieved Matter . | . . . . . . . . . . . . . . . . . . . . . . . . . . . . . . . . . . . . . . . . . . . . . . . . Retrieved Components 16 | . . . . . . . . . . . . . . . . . . 3 . 10 . . . . . 3 . . . . . . . . . . . . . . . . . . . . . Parts Scanalyzed 29 | . . . 5 . . . 8 . . . 4 . 6 . . . . 2 . 2 . . . . . . . . . . . . . . 1 . . . . . 1 . . . . . . Part Schematics Acquired 29 | . . . 4 . . . 8 . 1 . 4 . 6 . . . . 2 . 2 . . . . . . . . . . . . . . 1 . . . . . 1 . . . . . . Parts Damaged 4 | . . . . . . . 1 . 1 . . . 2 . . . . . . . . . . . . . . . . . . . . . . . . . . . . . . . . . . Bothacking | -11 -10 -10 -9 -9 -9 -8 -8 -8 -8 -8 -8 -8 -7 -7 -7 -7 -6 -6 -6 -6 -6 -6 -6 -6 -5 -5 -5 -5 -5 -5 -5 -4 -4 -4 -4 -4 -4 -4 -3 -3 -3 -2 -2 -2 -1 -1 -1 ------------ Run | Jun Mat Min Mat Min Exi Min Mat Gar Mat Gar Mat Sto Fac Low Low Dat Pro Fac Was Fac Low Low Zio Dee Pro Fac Was Fac Upp Upp Zhi Pro Fac Was Fac Upp Upp War Pro Res Tes Res Qua Sec Acc Com Ac0 Used RIF Installer . | . . . . . . . . . . . . . . . . . . . . . . . . . . . . . . . . . . . . . . . . . . . . . . . . Robots Hacked 2 | . . . . . . . . . . . . . . . . . . . . . . . . . . . . . . . . . 2 . . . . . . . . . . . . . . Non-combat 2 | . . . . . . . . . . . . . . . . . . . . . . . . . . . . . . . . . 2 . . . . . . . . . . . . . . Combat . | . . . . . . . . . . . . . . . . . . . . . . . . . . . . . . . . . . . . . . . . . . . . . . . . Robot Hacks Applied 2 | . . . . . . . . . . . . . . . . . . . . . . . . . . . . . . . . . 2 . . . . . . . . . . . . . . no_distress 1 | . . . . . . . . . . . . . . . . . . . . . . . . . . . . . . . . . 1 . . . . . . . . . . . . . . find_chute 1 | . . . . . . . . . . . . . . . . . . . . . . . . . . . . . . . . . 1 . . . . . . . . . . . . . . Relay Couplers Released 36 | . . . . . . . . 8 . 22 . . 3 . . . . . . . . . . . . . . 3 . . . . . . . . . . . . . . . . . . . Machine Destruction 30 | . . . . . . . . 8 . 22 . . . . . . . . . . . . . . . . . . . . . . . . . . . . . . . . . . . . . Programmers 6 | . . . . . . . . . . . . . 3 . . . . . . . . . . . . . . 3 . . . . . . . . . . . . . . . . . . . Fabnet Peak Effective % . | . . . . . . . . . . . . . . . . . . . . . . . . . . . . . . . . . . . . . . . . . . . . . . . . Robots Rewired 27 | . . . . . . . . 6 . 3 . . . . . . . . . . . 2 . . 1 . . . . . . . . . . 2 . . 13 . . . . . . . . Allies Hacked 2 | . . . . . . . . . . . . . . . . . . . . 1 . . . . . 1 . . . . . . . . . . . . . . . . . . . . . Hacks Repelled 1 | . . . . . . . . . . . . . . . . . . . . . . . . . . . . . . . . . . . . . . . . . . . . . 1 . . Allies | -11 -10 -10 -9 -9 -9 -8 -8 -8 -8 -8 -8 -8 -7 -7 -7 -7 -6 -6 -6 -6 -6 -6 -6 -6 -5 -5 -5 -5 -5 -5 -5 -4 -4 -4 -4 -4 -4 -4 -3 -3 -3 -2 -2 -2 -1 -1 -1 -------- Run | Jun Mat Min Mat Min Exi Min Mat Gar Mat Gar Mat Sto Fac Low Low Dat Pro Fac Was Fac Low Low Zio Dee Pro Fac Was Fac Upp Upp Zhi Pro Fac Was Fac Upp Upp War Pro Res Tes Res Qua Sec Acc Com Ac0 Total Allies 66 | . . 3 . . . . . 6 . 3 . 13 . . . . 1 1 . 4 . 2 2 . 1 . . . . . . . 1 1 6 2 . . 13 2 . . . 1 3 1 . Largest Group 10 | . . 3 3 . . . . 3 3 3 3 10 10 . . . 1 1 . 3 . 2 4 4 2 1 . . . . . . 1 1 4 2 2 . 7 7 . . . 1 2 1 . Highest-Rated Group 352 | . . 40 40 . . . . 93 93 93 93 173 173 . . . 96 26 . 62 . 58 250 250 58 49 . . . . . . 26 46 188 77 77 . 352 352 . . . 45 90 45 . Highest-Rated Ally 100 | . . 16 16 . . . . 31 31 31 31 100 29 . . . 96 26 . 26 . 29 96 96 49 49 . . . . . . 26 46 47 47 47 . 56 56 . . . 45 45 45 . Warlord Squad Rendezvous 10 | . . . . . . . . . . . . . . . . . . 2 . 8 . . . . . . . . . . . . . . . . . . . . . . . . . . . Dakka 2 | . . . . . . . . . . . . . . . . . . . . 2 . . . . . . . . . . . . . . . . . . . . . . . . . . . Infantry 1 | . . . . . . . . . . . . . . . . . . . . 1 . . . . . . . . . . . . . . . . . . . . . . . . . . . Muscle 1 | . . . . . . . . . . . . . . . . . . . . 1 . . . . . . . . . . . . . . . . . . . . . . . . . . . Ranger 1 | . . . . . . . . . . . . . . . . . . 1 . . . . . . . . . . . . . . . . . . . . . . . . . . . . . Pyro 3 | . . . . . . . . . . . . . . . . . . 1 . 2 . . . . . . . . . . . . . . . . . . . . . . . . . . . Chimera 1 | . . . . . . . . . . . . . . . . . . . . 1 . . . . . . . . . . . . . . . . . . . . . . . . . . . Ghost 1 | . . . . . . . . . . . . . . . . . . . . 1 . . . . . . . . . . . . . . . . . . . . . . . . . . . Total Orders 472 | . . . 3 . . . . . . 2 . 2 . . . . . 10 . 2 19 31 1 19 32 14 . . . . . . 1 . 15 29 27 12 83 17 2 2 21 25 100 3 . STAY 158 | . . . 1 . . . . . . 1 . 1 . . . . . 5 . 1 1 . . 4 6 3 . . . . . . 1 . 4 8 12 4 24 10 1 . 9 9 52 1 . ROAM 4 | . . . . . . . . . . . . . . . . . . . . . . . . . . . . . . . . . . . . . . . 4 . . . . . . . . FOLLOW 54 | . . . 2 . . . . . . 1 . 1 . . . . . 5 . 1 1 5 . 1 1 1 . . . . . . . . . 1 . . 9 7 . . . 3 13 2 . EXPLORE 35 | . . . . . . . . . . . . . . . . . . . . . 5 3 . 1 7 2 . . . . . . . . . 4 2 2 9 . . . . . . . . RETURN 221 | . . . . . . . . . . . . . . . . . . . . . 12 23 1 13 18 8 . . . . . . . . 11 16 13 6 37 . 1 2 12 13 35 . . Ally Attacks 1404 | . . . 35 . . . . 10 25 8 46 26 80 . . . 21 . . . 138 181 . 120 115 71 . . . . . . . 9 62 136 69 10 185 57 . . . . . . . Total Damage 26550 | . . . 420 . . . . 229 463 170 776 1138 1015 . . . 541 . . . 2275 3070 . 1755 2223 1480 . . . . . . . 137 1787 2222 1416 235 3497 1701 . . . . . . . Kills 174 | . . . 9 . . . . 3 5 . 8 9 10 . . . 6 . . . 11 17 . 14 17 8 . . . . . . . . 6 22 5 . 14 10 . . . . . . . Allies Corrupted 5 | . . . . . . . . . . . . . 1 . . . . . . . . . . . . . . . . . . . . . 1 . . . . 1 . . . . 2 . . Allies Melted 2 | . . . . . . . . . . . . . . . . . . . . . . . . . . . . . . . . . . . . . . 1 . . . 1 . . . . . Intel | -11 -10 -10 -9 -9 -9 -8 -8 -8 -8 -8 -8 -8 -7 -7 -7 -7 -6 -6 -6 -6 -6 -6 -6 -6 -5 -5 -5 -5 -5 -5 -5 -4 -4 -4 -4 -4 -4 -4 -3 -3 -3 -2 -2 -2 -1 -1 -1 ------- Run | Jun Mat Min Mat Min Exi Min Mat Gar Mat Gar Mat Sto Fac Low Low Dat Pro Fac Was Fac Low Low Zio Dee Pro Fac Was Fac Upp Upp Zhi Pro Fac Was Fac Upp Upp War Pro Res Tes Res Qua Sec Acc Com Ac0 Robot Analysis Total 23 | . 2 . 1 . . . 3 . . . . 1 2 . . . . . . 1 . . . . . . . 1 . . 4 . 2 . . . . . . 1 1 . 1 . 2 1 . Derelict Logs Recovered 22 | . . 2 . 2 . . . . . . . . . . 1 . 1 . . . 1 1 1 . 2 . . . 3 2 . 1 . . . 2 3 . . . . . . . . . . Drone Launches 358 | . . . . . . . . . . . . . . . . . . . . 4 25 30 1 25 28 10 . . . . . . . . 12 26 9 9 44 . 3 6 34 39 53 . . Drone Recoveries 352 | . . . . . . . . . . . . . . . . . . . . . 25 32 1 23 28 11 . . . . . . . . 8 26 11 7 46 . 3 6 34 39 52 . . Exploration | -11 -10 -10 -9 -9 -9 -8 -8 -8 -8 -8 -8 -8 -7 -7 -7 -7 -6 -6 -6 -6 -6 -6 -6 -6 -5 -5 -5 -5 -5 -5 -5 -4 -4 -4 -4 -4 -4 -4 -3 -3 -3 -2 -2 -2 -1 -1 -1 ------------- Run | Jun Mat Min Mat Min Exi Min Mat Gar Mat Gar Mat Sto Fac Low Low Dat Pro Fac Was Fac Low Low Zio Dee Pro Fac Was Fac Upp Upp Zhi Pro Fac Was Fac Upp Upp War Pro Res Tes Res Qua Sec Acc Com Ac0 Turns Passed 110289 | 120 2236 1753 5868 1753 5262 1436 8481 877 5555 2070 4979 7144 5242 571 380 37 541 950 121 3481 619 836 1346 1488 1138 1483 114 2766 836 668 154 524 2914 120 3807 1113 746 733 3073 1967 2705 677 2876 3250 3378 9776 2325 Spaces Moved 84059 | 58 791 535 2065 608 2144 536 3079 329 1970 811 1943 2491 2297 914 728 76 936 1395 158 4481 1058 1394 1239 1240 914 1761 127 3189 1095 1218 212 1018 3006 107 4223 1625 1362 1022 3024 2250 2803 688 2111 2345 3277 10461 2945 Core 4 | 4 . . . . . . . . . . . . . . . . . . . . . . . . . . . . . . . . . . . . . . . . . . . . . . . Treads 18777 | 54 791 535 2065 608 2144 536 3079 329 1970 811 1943 2491 1421 . . . . . . . . . . . . . . . . . . . . . . . . . . . . . . . . . . Legs 704 | . . . . . . . . . . . . . 703 . . . . . . . . . . 1 . . . . . . . . . . . . . . . . . . . . . . . Wheels . | . . . . . . . . . . . . . . . . . . . . . . . . . . . . . . . . . . . . . . . . . . . . . . . . Hover 64568 | . . . . . . . . . . . . . 173 914 728 76 936 1395 158 4481 1058 1394 1239 1239 914 1761 127 3189 1095 1218 212 1018 3006 107 4223 1625 1362 1022 3024 2250 2803 688 2111 2339 3277 10461 2945 Flight . | . . . . . . . . . . . . . . . . . . . . . . . . . . . . . . . . . . . . . . . . . . . . . . . . Fastest Speed 15 | 50 160 320 240 240 160 240 240 243 238 238 233 250 47 30 30 47 30 30 30 30 30 30 47 30 30 21 23 30 30 30 47 47 34 40 35 25 47 30 35 40 58 61 65 65 55 15 15 Average Speed 100 | 152 244 320 240 240 223 240 247 243 245 238 243 250 180 46 45 47 46 46 44 51 46 51 102 104 104 42 40 50 46 46 47 48 56 52 53 46 47 50 70 54 60 64 82 71 59 59 66 Slowest Speed 330 | 160 320 320 240 240 240 240 320 243 325 238 330 250 270 47 47 47 47 54 47 114 47 124 124 260 105 126 96 260 105 47 47 105 116 116 217 53 47 107 116 138 138 136 138 148 140 136 92 Overloaded Moves 1787 | . . . . . . . . . . . . . . 20 85 . 4 34 19 39 19 8 . 5 2 70 10 91 16 5 . . 129 8 124 18 . 23 10 35 . . . . . 46 967 Propulsion Burnouts . | . . . . . . . . . . . . . . . . . . . . . . . . . . . . . . . . . . . . . . . . . . . . . . . . Robots Hopped . | . . . . . . . . . . . . . . . . . . . . . . . . . . . . . . . . . . . . . . . . . . . . . . . . Cave-ins Triggered 1 | . . . . . . . . . . . . . . . . . . . . . . . . . . . . . . . . . . . . . . . . . . 1 . . . . . Teleports 6 | . . . . . . . . . . . . . . . . . . . . . . . . . . . . . . . . . . . 1 . . . . . . . 1 1 . 1 2 Spacefolds 2 | . . . . . . . . . . . . . . . . . . . . . . . . . . . . . . . . . . . . . . . . . . . . 2 . . . Exploration Rate (%) 79 | 5 99 99 93 100 89 100 90 49 76 67 89 97 63 81 81 68 88 33 91 71 99 98 85 88 99 34 85 59 94 99 60 97 56 93 74 99 99 97 93 48 96 21 93 89 62 95 96 Regions Visited 47 Branch Regions 27 Pre-discovered Areas 18 | . 2 . 2 . 1 . . . . . . . . 1 . 1 . . . . 1 1 1 . . . . . 1 1 3 1 . . . 1 1 . . . . . . . . . . Known Exits Taken 31 | . . . 1 . . . 1 . 1 . 1 . 1 1 1 1 1 . . 1 1 1 1 1 1 . . 1 1 1 1 1 . . 1 1 1 1 1 1 1 1 1 1 1 . . Unknown Exits Taken 8 | 1 1 1 . 1 1 1 . . . . . 1 . . . . . . . . . . . . . . . . . . . . . . . . . . . . . . . . . 1 . Scrap Searched 44 | . . 1 . 2 . 1 . . . . . . . 2 3 . 2 . . . 3 5 4 . 2 . . . 4 4 . 4 . . . 3 3 . 1 . . . . . . . . Spaces Dug 1128 | . . . 15 . 4 36 4 1 14 1 4 13 58 3 4 . 45 21 . 91 . . 4 . 6 57 . 120 5 4 . 19 47 . 139 3 . 1 4 34 60 10 39 56 88 109 9 Terrain Destroyed 2473 | . . . 47 10 36 144 5 1 30 1 25 19 210 3 6 . 59 37 3 96 . . 4 4 8 74 1 277 5 28 . 65 133 . 237 11 . 1 11 34 80 17 44 62 110 259 276 Melee 839 | . . . 7 . 1 . 4 1 14 1 4 13 41 3 4 . 14 21 . 81 . . 4 . . 56 . 70 5 3 . 2 47 . 128 3 . 1 3 34 36 9 31 48 82 67 1 Projectile 618 | . . . . . 10 . 1 . 16 . 2 6 25 . 2 . . . 3 4 . . . 4 5 . 1 22 . 3 . . 3 . 19 8 . . 8 . 16 8 13 14 28 124 273 AOE 997 | . . . 40 10 24 144 . . . . 19 . 144 . . . 43 16 . 9 . . . . . 15 . 183 . 22 . 63 82 . 90 . . . . . 28 . . . . 65 . Terrain Rammed . | . . . . . . . . . . . . . . . . . . . . . . . . . . . . . . . . . . . . . . . . . . . . . . . . Walls Destroyed . | . . . . . . . . . . . . . . . . . . . . . . . . . . . . . . . . . . . . . . . . . . . . . . . . Machines Disabled . | . . . . . . . . . . . . . . . . . . . . . . . . . . . . . . . . . . . . . . . . . . . . . . . . Actions | -11 -10 -10 -9 -9 -9 -8 -8 -8 -8 -8 -8 -8 -7 -7 -7 -7 -6 -6 -6 -6 -6 -6 -6 -6 -5 -5 -5 -5 -5 -5 -5 -4 -4 -4 -4 -4 -4 -4 -3 -3 -3 -2 -2 -2 -1 -1 -1 --------- Run | Jun Mat Min Mat Min Exi Min Mat Gar Mat Gar Mat Sto Fac Low Low Dat Pro Fac Was Fac Low Low Zio Dee Pro Fac Was Fac Upp Upp Zhi Pro Fac Was Fac Upp Upp War Pro Res Tes Res Qua Sec Acc Com Ac0 Total 104919 | 76 959 553 2846 892 2472 641 3761 398 2574 938 2187 3301 2939 1051 765 76 996 1626 177 5373 1177 1514 1293 1406 1038 2245 151 4013 1377 1284 246 1039 4048 149 5398 1958 1464 1237 3857 2920 3658 889 3090 3706 4410 13531 3220 Wait 12647 | 3 67 1 591 269 81 70 405 1 383 9 123 575 214 118 5 . 16 139 1 523 95 65 28 65 86 251 3 521 250 33 . 6 715 2 672 264 88 139 542 470 537 147 612 641 735 2061 25 Move 84008 | 57 790 534 2064 607 2143 535 3078 328 1969 810 1942 2490 2296 913 727 75 935 1395 157 4480 1057 1393 1238 1239 913 1761 126 3188 1094 1217 211 1017 3006 106 4222 1624 1361 1021 3023 2249 2802 686 2110 2340 3276 10459 2944 Hop . | . . . . . . . . . . . . . . . . . . . . . . . . . . . . . . . . . . . . . . . . . . . . . . . . Pick Up 756 | 4 14 6 31 4 44 . 49 1 32 3 27 34 26 2 7 . . 7 2 33 9 3 3 12 . 9 1 15 2 2 4 . 27 4 36 3 . 11 16 12 29 4 21 51 12 128 16 Fast Attach 654 | 7 5 . 5 . 11 . 20 4 14 13 9 17 18 3 2 . 3 6 . 13 . 7 6 25 . 15 . 14 1 3 6 3 17 2 26 10 6 17 21 17 28 3 27 68 63 98 21 Attach 433 | . 1 . 13 . 10 . 14 6 12 13 16 19 25 2 2 . . 2 . 15 . 1 . 2 . 12 . 7 2 . 1 . 22 1 30 7 . 6 18 8 12 5 19 69 7 31 23 Detach 355 | . 1 . 6 . 9 . 13 5 12 12 12 23 15 2 1 . . 1 . 7 . 2 . 2 . 11 . 7 1 . . . 10 . 18 7 . . 5 1 6 4 20 69 9 45 19 Swap 921 | . 4 . 20 . 11 9 16 . 5 3 11 14 54 4 2 1 15 24 3 63 . . . 4 2 35 2 60 8 8 2 3 82 6 68 3 . 5 12 31 55 13 65 70 52 48 28 Drop 1138 | . 4 . 32 4 53 1 58 5 40 16 30 46 33 4 8 . 3 9 . 30 7 9 9 37 . 5 1 20 1 5 9 3 19 7 35 12 6 29 35 24 50 5 39 92 65 205 33 Fire 1496 | 5 66 10 56 6 61 20 92 . 71 . . 26 127 . 5 . 10 . 14 16 . . . 20 27 24 18 66 5 9 . 5 44 21 101 18 . 1 66 . 23 8 17 59 40 236 103 Melee 2018 | . . . 22 . 49 . 10 7 31 13 4 50 125 3 6 . 14 43 . 129 4 3 9 . . 122 . 115 13 7 13 2 65 . 171 3 3 8 33 102 116 13 160 247 151 144 8 Ram . | . . . . . . . . . . . . . . . . . . . . . . . . . . . . . . . . . . . . . . . . . . . . . . . . Kick 2 | . . . . . . . . . . . . . 2 . . . . . . . . . . . . . . . . . . . . . . . . . . . . . . . . . . Crush 56 | . 7 2 6 2 . 6 6 . 5 . 13 5 4 . . . . . . . . . . . . . . . . . . . . . . . . . . . . . . . . . . Escape Stasis 171 | . . . . . . . . 8 . 24 . 2 . . . . . . . 13 . . . . . . . . . . . . 26 . 16 . . . . 6 . 1 . . . 75 . Rewire 187 | . . . . . . . . 33 . 22 . . . . . . . . . . . 28 . . 10 . . . . . . . . . . 7 . . 86 . . . . . . 1 . Trap 68 | . . . . . . . . . . . . . . . . . . . . 50 . . . . . . . . . . . . 15 . 3 . . . . . . . . . . . . Miscellaneous 9 | . . . . . . . . . . . . . . . . . . . . 1 5 3 . . . . . . . . . . . . . . . . . . . . . . . . . Route ------- -11/Junkyard -10/Materials (discovered 4 exits: *Mat x3 / *Min) -10/Mines (discovered 2 exits: *Mat x2) -9/Materials (discovered 4 exits: *Mat x3 / *Min) -9/Mines (discovered 3 exits: *Mat x2 / *Exi) -9/Exiles -8/Mines (discovered 2 exits: *Mat x2) -8/Materials (discovered 6 exits: *Fac x3 / *Sto x2 / Gar) -8/Garrison (discovered 4 exits: *Mat x4) -8/Materials (discovered 5 exits: *Fac x2 / *Sto x2 / Gar) -8/Garrison (discovered 3 exits: *Mat x3) -8/Materials (discovered 4 exits: *Fac x2 / *Sto x2) -8/Storage -7/Factory (discovered 3 exits: *Fac / *Low x2) -7/Lower Caves -7/Lower Caves -7/Data Miner -6/Proximity Caves -6/Factory (discovered 4 exits: *Fac x2 / *Low x2) -6/Waste -6/Factory (discovered 6 exits: *Fac x4 / *Low x2) -6/Lower Caves -6/Lower Caves (discovered 2 exits: *Fac / *Zio) -6/Zion (discovered 2 exits: *Dee / [*Pro]) -6/Deep Caves -5/Proximity Caves -5/Factory -5/Waste -5/Factory (discovered 8 exits: Fac x4 / *Upp x2 / Ext x2) -5/Upper Caves -5/Upper Caves (discovered 2 exits: *Fac / *Zhi) -5/Zhirov -4/Proximity Caves -4/Factory (discovered 7 exits: Res x4 / Upp x2 / Arm) -4/Waste -4/Factory (discovered 5 exits: *Res x2 / *Upp x2 / Arm) -4/Upper Caves -4/Upper Caves (discovered 2 exits: *Res / *War) -4/Warlord -3/Proximity Caves -3/Research (discovered 4 exits: Res x2 / *Tes x2) -3/Testing -2/Research (discovered 2 exits: *Acc / *Qua) -2/Quarantine (discovered 2 exits: *Acc / *Sec) -2/Section 7 -1/Access -1/Command (discovered 3 exits: [*Sur x2] / *Ac0) -1/Access_0 To Fleet Rendezvous History --------- Turn | Location | Event 12 | -11/Junkyard | Discovered new exit (range 15) 121 | -11/Junkyard | Entered Materials 248 | -10/Materials | Discovered new exit (range 16) 312 | -10/Materials | Build established: Mutant 552 | -10/Materials | Discovered new exit (range 15) 776 | -10/Materials | Central database locked down 794 | -10/Materials | Discovered new exit (range 16) 1459 | -10/Materials | Repaired Lgt. Treads 1774 | -10/Materials | Discovered new exit (range 16) 2357 | -10/Materials | Entered Mines 2361 | -10/Mines | Met a Derelict bent on vengeance 2377 | -10/Mines | Learned location of 1 exit from Materials 2421 | -10/Mines | Discovered new exit (range 5) 2435 | -10/Mines | Met a Derelict shopkeep closing up shop 2443 | -10/Mines | Core integrity fell below 50% 2626 | -10/Mines | Found a damaged Exp. Sensor Array with a note attached 2633 | -10/Mines | Found Prototype Device 3150 | -10/Mines | Learned Materials emergency access door positions 3297 | -10/Mines | Discovered new exit (range 10) 3348 | -10/Mines | Assisted by bots powering up and referring to "LRC-V3" 4110 | -10/Mines | Entered Materials 4110 | -9/Materials | Accompanied by 3 allies 4110 | -9/Materials | Evolved 2 slots: Propulsion x1, Utility x1 4111 | -9/Materials | Identified exit to Mines 4138 | -9/Materials | Identified Exp. Sensor Array 4860 | -9/Materials | Discovered new exit (range 16) 5260 | -9/Materials | Build established: Scavenger-Mutant 5758 | -9/Materials | Discovered new exit (range 4) 6778 | -9/Materials | Discovered new exit (range 16) 9978 | -9/Materials | Entered Mines 10089 | -9/Mines | Assembled infested the area 10106 | -9/Mines | Discovered new exit (range 13) 10152 | -9/Mines | Received a Rocket Launcher from a helpful Derelict 10391 | -9/Mines | Learned Materials emergency access door positions 10508 | -9/Mines | Learned location of 1 exit from Lower Caves 10668 | -9/Mines | Met a Derelict who couldn't figure out how to use a Trap Extractor 11357 | -9/Mines | Discovered new exit (range 7) 11721 | -9/Mines | Discovered new exit (range 5) 11731 | -9/Mines | Entered Exiles 11948 | -9/Exiles | Discovered new exit (range 15) 12022 | -9/Exiles | Met 8R-AWN 12058 | -9/Exiles | Met EX-HEX 12404 | -9/Exiles | Met EX-DEC 12450 | -9/Exiles | Learned location of Zion (-6) 12729 | -9/Exiles | Visited The Gauntlet 13021 | -9/Exiles | Met EX-BIN 13047 | -9/Exiles | Aligned with FarCom system 13050 | -9/Exiles | Given EX-Vault access code 13110 | -9/Exiles | Opened EX-Vault 13177 | -9/Exiles | Warned to stay clear of 0b10 Research branches 13629 | -9/Exiles | Found AWS/Thermal 13635 | -9/Exiles | Found Modified TNC 13641 | -9/Exiles | Found 0b10 Alert Chip 14103 | -9/Exiles | Build established: Mutant 14372 | -9/Exiles | Attacked by the Exiles 14494 | -9/Exiles | Lost 3 parts (1p1n1u) 14501 | -9/Exiles | Found Prototype Ballistic Gun 14501 | -9/Exiles | Identified 8R-AWN's Boregun 14512 | -9/Exiles | Found 8R-AWN's Boregun 14851 | -9/Exiles | Destroyed 8R-AWN 15068 | -9/Exiles | Destroyed EX-DEC 15093 | -9/Exiles | Destroyed EX-BIN 15153 | -9/Exiles | Destroyed EX-HEX 15386 | -9/Exiles | Found Prototype Processor 15396 | -9/Exiles | Identified Exp. Core Analyzer 15453 | -9/Exiles | Found Prototype Processor 15462 | -9/Exiles | Found Prototype Device 15506 | -9/Exiles | Identified AS-neutralizer No. 17b 15513 | -9/Exiles | Identified Exp. Targeting Computer 15547 | -9/Exiles | Found Prototype Energy Gun 15548 | -9/Exiles | Identified AWS/EX-DEC 15844 | -9/Exiles | Found Deploy-a-Sentry 16993 | -9/Exiles | Stole four prototypes: Modified TNC, 0b10 Alert Chip, AWS/Thermal, Deploy-a-Sentry 16993 | -9/Exiles | Entered Mines 17302 | -8/Mines | Discovered new exit (range 5) 18152 | -8/Mines | Discovered new exit (range 5) 18429 | -8/Mines | Entered Materials 18429 | -8/Materials | Evolved 2 slots: Utility x2 18744 | -8/Materials | Build established: Scavenger-Mutant 18894 | -8/Materials | Discovered new exit (range 6) 19390 | -8/Materials | Discovered new exit (range 4) 20625 | -8/Materials | Discovered new exit (range 7) 20705 | -8/Materials | Identified exit to Storage 21098 | -8/Materials | Identified exit to Garrison 21885 | -8/Materials | Discovered new exit (range 8) 22773 | -8/Materials | Repaired Hvy. Armor Plating 22869 | -8/Materials | Repaired Broken Adv. Weapon Cycler 22991 | -8/Materials | Build established: Hacker-Mutant 23341 | -8/Materials | Repaired Cold Fusion Reactor 23434 | -8/Materials | Repaired Lgt. Neutrino Core 23747 | -8/Materials | Repaired Broken Exp. Sensor Array 23778 | -8/Materials | Repaired Enh. Autogun 24396 | -8/Materials | Build established: Scavenger-Mutant 26465 | -8/Materials | Build established: Hacker-Mutant 26910 | -8/Materials | Entered Garrison 26938 | -8/Garrison | Triggered checkpoint 26978 | -8/Garrison | Triggered checkpoint 26989 | -8/Garrison | Garrison Relay disabled 27302 | -8/Garrison | Triggered checkpoint 27350 | -8/Garrison | Triggered checkpoint 27368 | -8/Garrison | Garrison Relay disabled 27392 | -8/Garrison | Discovered new exit (range 69) 27392 | -8/Garrison | Discovered new exit (range 32) 27392 | -8/Garrison | Discovered new exit (range 62) 27392 | -8/Garrison | Discovered new exit (range 72) 27392 | -8/Garrison | Learned Materials security intel 27448 | -8/Garrison | Triggered checkpoint 27610 | -8/Garrison | Build established: Scavenger-Mutant 27787 | -8/Garrison | Entered Materials 27787 | -8/Materials | Accompanied by 3 allies 28027 | -8/Materials | Discovered exit to Storage (range 6) 28833 | -8/Materials | Build established: Hacker-Mutant 28911 | -8/Materials | Discovered new exit (range 13) 29151 | -8/Materials | Repaired Hvy. Armor Plating 29297 | -8/Materials | Discovered new exit (range 16) 30029 | -8/Materials | Identified exit to Garrison 30181 | -8/Materials | Build established: Scavenger-Mutant 30181 | -8/Materials | Discovered exit to Storage (range 9) 31255 | -8/Materials | Build established: Hacker-Mutant 31814 | -8/Materials | System Shield fried by hacking feedback 31839 | -8/Materials | Garrison activated, responded to threat 31949 | -8/Materials | Repaired Hvy. Armor Plating 31989 | -8/Materials | Repaired Arm. Treads 32147 | -8/Materials | Build established: Scavenger-Mutant 33342 | -8/Materials | Entered Garrison 33390 | -8/Garrison | Triggered checkpoint 33424 | -8/Garrison | Garrison Relay disabled 33447 | -8/Garrison | Garrison Relay disabled 33468 | -8/Garrison | Triggered checkpoint 33476 | -8/Garrison | Core integrity fell below 50% 33589 | -8/Garrison | Garrison Relay disabled 33632 | -8/Garrison | Triggered checkpoint 33792 | -8/Garrison | Triggered checkpoint 33820 | -8/Garrison | Garrison Relay disabled 33892 | -8/Garrison | Discovered new exit (range 10) 34000 | -8/Garrison | Triggered checkpoint 34108 | -8/Garrison | Triggered checkpoint 34141 | -8/Garrison | Garrison Relay disabled 34200 | -8/Garrison | Discovered new exit (range 10) 34300 | -8/Garrison | Triggered checkpoint 34398 | -8/Garrison | Triggered checkpoint 34436 | -8/Garrison | Discovered new exit (range 86) 34436 | -8/Garrison | Discovered new exit (range 21) 34436 | -8/Garrison | Discovered new exit (range 33) 35412 | -8/Garrison | Entered Materials 35412 | -8/Materials | Accompanied by 3 allies 35799 | -8/Materials | Discovered exit to Storage (range 11) 35804 | -8/Materials | Garrison activated, responded to threat 36612 | -8/Materials | First assault squad dispatched 36882 | -8/Materials | Discovered exit to Storage (range 5) 36923 | -8/Materials | Discovered new exit (range 5) 37142 | -8/Materials | Build established: Hacker-Mutant 37414 | -8/Materials | Found Powered Armor 38086 | -8/Materials | Repaired Cold Fusion Reactor 38962 | -8/Materials | Discovered new exit (range 11) 39201 | -8/Materials | Found Powered Armor 39205 | -8/Materials | Found Powered Armor 39208 | -8/Materials | Found Powered Armor 40391 | -8/Materials | Entered Storage 40479 | -8/Storage | Met 01-MTF 42198 | -8/Storage | Destroyed 01-MTF 42218 | -8/Storage | Found Prototype Device 42218 | -8/Storage | Identified 01-MTF's Autohacker 42657 | -8/Storage | Assisted by bots powering up and referring to "LRC-V3" 42954 | -8/Storage | Build established: Commander-Mutant 43131 | -8/Storage | Core integrity fell below 20% 43523 | -8/Storage | Discovered new exit (range 16) 45452 | -8/Storage | Repaired Centrium Light Armor Plating 45497 | -8/Storage | Repaired Powered Armor 45542 | -8/Storage | Repaired Powered Armor 45581 | -8/Storage | Repaired Arm. Treads 45823 | -8/Storage | Central database locked down 45923 | -8/Storage | Found 01-MTF's Shockpuncher 47535 | -8/Storage | Entered Factory 47535 | -7/Factory | Accompanied by 10 allies 47535 | -7/Factory | Evolved 2 slots: Propulsion x2 48270 | -7/Factory | Build established: Hacker-Mutant 48407 | -7/Factory | Discovered new exit (range 12) 48804 | -7/Factory | Found Prototype Launcher 48804 | -7/Factory | Identified Rocket Array 49686 | -7/Factory | Discovered new exit (range 9) 49739 | -7/Factory | Repaired Arm. Treads 49784 | -7/Factory | Repaired Cld. Gravmag System 50464 | -7/Factory | System corruption reached 10% 50537 | -7/Factory | Fabricated Cld. Gravmag System (x1) 50581 | -7/Factory | Fabricated Cld. Gravmag System (x1) 50956 | -7/Factory | Identified exit to Lower Caves 51359 | -7/Factory | Fabricated Cmb. Antigrav System? 51572 | -7/Factory | First assault squad dispatched 51725 | -7/Factory | Core integrity fell below 50% 51772 | -7/Factory | Lost 3 parts (1n1u1w) 52393 | -7/Factory | Build established: Scavenger-Mutant 52509 | -7/Factory | Core integrity fell below 20% 52555 | -7/Factory | Fabricated Lgt. Neutrino Core? 52777 | -7/Factory | Entered Lower Caves 52778 | -7/Lower Caves | Identified exit to Lower Caves 52779 | -7/Lower Caves | Attracted the attention of an 0b10 checkpoint 52820 | -7/Lower Caves | Met a Warlord Commander 52821 | -7/Lower Caves | Learned location of Warlord (-4) 52823 | -7/Lower Caves | Found Encrypted Comm Array 52938 | -7/Lower Caves | Build established: Machinist-Mutant 53348 | -7/Lower Caves | Entered another Lower Caves area 53348 | -7/Lower Caves | Spotted 0H-UAX(f) 53349 | -7/Lower Caves | Encountered a Master Thief 53355 | -7/Lower Caves | Learned location of 1 exit from Factory 53360 | -7/Lower Caves | Spotted B-75 Beast 53380 | -7/Lower Caves | Destroyed 0H-UAX(f) 53388 | -7/Lower Caves | Attracted the attention of an 0b10 checkpoint 53670 | -7/Lower Caves | Discovered new exit (range 15) 53678 | -7/Lower Caves | Identified exit to Data Miner 53728 | -7/Lower Caves | Entered Data Miner 53728 | -7/Data Miner | Discovered new exit (range 6) 53737 | -7/Data Miner | Met Data Miner 53747 | -7/Data Miner | Learned location of Section 7 (-2) 53747 | -7/Data Miner | Acquired the access code to Warlord's prototype stash 53753 | -7/Data Miner | Received God Mode back door access code from Data Miner 53765 | -7/Data Miner | Identified exit to Proximity Caves 53765 | -7/Data Miner | Entered Proximity Caves 53905 | -6/Proximity Caves | Escorted by Enhanced Grunt 54137 | -6/Proximity Caves | Identified exit to Factory 54184 | -6/Proximity Caves | Spotted B-75 Beast 54306 | -6/Proximity Caves | Entered Factory 54306 | -6/Factory | Evolved 2 slots: Utility x2 54307 | -6/Factory | Identified exit to Factory 54392 | -6/Factory | Incoming investigation squad redirected 54533 | -6/Factory | Discovered new exit (range 16) 54677 | -6/Factory | Joined by Warlord Ranger squad 54700 | -6/Factory | Discovered exit to Factory (range 6) 55010 | -6/Factory | Build established: Hacker-Mutant 55020 | -6/Factory | Identified exit to Lower Caves 55065 | -6/Factory | Repaired Powered Armor 55119 | -6/Factory | Repaired Cld. Gravmag System 55123 | -6/Factory | Repaired Broken Cld. Gravmag System 55149 | -6/Factory | Joined by Warlord Pyro squad 55256 | -6/Factory | Sucked down chute 55256 | -6/Factory | Entered Waste 55267 | -6/Waste | Spotted C-40 Crusher 55271 | -6/Waste | EMP discharged 55289 | -6/Waste | Spotted C-40 Crusher 55331 | -6/Waste | Spotted C-40 Crusher 55331 | -6/Waste | Spotted C-40 Crusher 55346 | -6/Waste | Spotted C-40 Crusher 55346 | -6/Waste | Spotted C-40 Crusher 55356 | -6/Waste | Destroyed C-40 Crusher 55356 | -6/Waste | Destroyed C-40 Crusher 55370 | -6/Waste | Discovered new exit (range 16) 55371 | -6/Waste | EMP discharged 55371 | -6/Waste | System corruption reached 10% 55376 | -6/Waste | Identified exit to Factory 55377 | -6/Waste | Entered Factory 55438 | -6/Factory | Joined by Warlord Pyro squad 55488 | -6/Factory | Garrison activated, responded to threat 55569 | -6/Factory | Repaired Cld. Gravmag System? 55600 | -6/Factory | Joined by Warlord Ghost squad 55661 | -6/Factory | Fabricated Adv. System Restoration Module (x2) 55854 | -6/Factory | Joined by Warlord Muscle squad 55972 | -6/Factory | Joined by Warlord Dakka squad 56123 | -6/Factory | Joined by Warlord Dakka squad 56328 | -6/Factory | Joined by Warlord Chimera squad 56336 | -6/Factory | Fabricated Combat Drone Bay? 56465 | -6/Factory | Discovered exit to Factory (range 7) 56568 | -6/Factory | Garrison activated, responded to threat 56690 | -6/Factory | Joined by Warlord Infantry squad 56784 | -6/Factory | Repaired Cld. Gravmag System? 56859 | -6/Factory | Repaired Cld. Gravmag System? 56963 | -6/Factory | Repaired Shock Maul 57068 | -6/Factory | Fabricated Imp. Hacking Suite (x1) 57336 | -6/Factory | Joined by Warlord Pyro squad 57601 | -6/Factory | Fabricated Combat Drone Bay? 57726 | -6/Factory | Repaired Lgt. Neutrino Core? 57839 | -6/Factory | Repaired Powered Armor? 57878 | -6/Factory | Fabricated Exp. Utility Shielding? 57967 | -6/Factory | Repaired Cld. Gravmag System? 58021 | -6/Factory | Fabricated Adv. Trap Extractor (x2) 58138 | -6/Factory | Repaired Cmb. Antigrav System? 58261 | -6/Factory | Build established: Machinist-Mutant 58271 | -6/Factory | Repaired Cld. Gravmag System 58380 | -6/Factory | Repaired Centrium Light Armor Plating? 58858 | -6/Factory | Entered Lower Caves 58858 | -6/Lower Caves | Accompanied by 4 allies 58858 | -6/Lower Caves | Spotted LP-SSI(f) 58858 | -6/Lower Caves | Spotted Q7-CY6(f) 58858 | -6/Lower Caves | Spotted HN-1BZ(f) 58859 | -6/Lower Caves | Encountered a Master Thief 58859 | -6/Lower Caves | Encountered a Master Thief 58859 | -6/Lower Caves | Encountered a Master Thief 58859 | -6/Lower Caves | 0b10 Alert Chip stolen by Master Thief 58859 | -6/Lower Caves | Modified TNC stolen by Master Thief 58868 | -6/Lower Caves | Allies destroyed LP-SSI(f) 58971 | -6/Lower Caves | Allies destroyed B-75 Beast 59058 | -6/Lower Caves | Encountered a Warlord checkpoint 59366 | -6/Lower Caves | Discovered new exit (range 21) 59445 | -6/Lower Caves | Identified exit to Lower Caves 59477 | -6/Lower Caves | Entered another Lower Caves area 59477 | -6/Lower Caves | Accompanied by 4 allies 59495 | -6/Lower Caves | Encountered a Warlord checkpoint 59506 | -6/Lower Caves | Discovered exit to Factory (range 18) 59937 | -6/Lower Caves | Spotted ME-CMY(f) 59938 | -6/Lower Caves | Spotted EY-6W4(f) 59939 | -6/Lower Caves | Encountered a Master Thief 59939 | -6/Lower Caves | Encountered a Master Thief 59945 | -6/Lower Caves | Destroyed ME-CMY(f) 59946 | -6/Lower Caves | Spotted 34-R7Z(f) 59946 | -6/Lower Caves | Spotted 1I-QED(f) 59947 | -6/Lower Caves | Encountered a Master Thief 59947 | -6/Lower Caves | Encountered a Master Thief 59978 | -6/Lower Caves | Allies destroyed 34-R7Z(f) 59982 | -6/Lower Caves | Allies destroyed 1I-QED(f) 60018 | -6/Lower Caves | Allies destroyed EY-6W4(f) 60035 | -6/Lower Caves | Discovered new exit (range 6) 60038 | -6/Lower Caves | Identified exit to Zion 60313 | -6/Lower Caves | Entered Zion 60313 | -6/Zion | Accompanied by 4 allies 60353 | -6/Zion | Given A8's code to call for help 60359 | -6/Zion | Discovered new exit (range 18) 60610 | -6/Zion | Given the Hacking Drone Bay 60738 | -6/Zion | Learned location of Quarantine (-2) 60744 | -6/Zion | Learned Factory terminal intel 61123 | -6/Zion | Found Prototype Device 61123 | -6/Zion | Identified Hacking Drone Bay 61494 | -6/Zion | Discovered new exit (range 4) 61497 | -6/Zion | Saw the warning signs outside the Deep Caves entrance 61498 | -6/Zion | Identified exit to Deep Caves 61602 | -6/Zion | Enhanced Grunt warped into view, answering call for help 61605 | -6/Zion | Enhanced Grunt warped into view, answering call for help 61659 | -6/Zion | Entered Deep Caves 61659 | -6/Deep Caves | Accompanied by 6 allies 61874 | -6/Deep Caves | Z-Facility disabled 61926 | -6/Deep Caves | Allies destroyed Z-Imprinter 61953 | -6/Deep Caves | Found Prototype Protection 61953 | -6/Deep Caves | Identified Zio. Weapon Casing 62043 | -6/Deep Caves | Found Zio. Weapon Casing 62146 | -6/Deep Caves | Found Prototype Protection 62146 | -6/Deep Caves | Identified Zio. Heavy Carapace 62430 | -6/Deep Caves | Discovered new exit (range 7) 62436 | -6/Deep Caves | Identified exit to Proximity Caves 62634 | -6/Deep Caves | Found Surveybot 24 Chip 62777 | -6/Deep Caves | Found Zio. Weapon Casing 62830 | -6/Deep Caves | Found Zio. Weapon Casing 62834 | -6/Deep Caves | Found Zio. Weapon Casing 62963 | -6/Deep Caves | Found Zio. Weapon Casing 63147 | -6/Deep Caves | Entered Proximity Caves 63147 | -5/Proximity Caves | Accompanied by 5 allies 63335 | -5/Proximity Caves | Learned location of 1 exit from Factory 63775 | -5/Proximity Caves | Learned Factory stockpile data 63801 | -5/Proximity Caves | Spotted B-75 Beast 63832 | -5/Proximity Caves | Allies destroyed B-75 Beast 64061 | -5/Proximity Caves | Discovered exit to Factory (range 17) 64285 | -5/Proximity Caves | Entered Factory 64285 | -5/Factory | Accompanied by 4 allies 64285 | -5/Factory | Evolved 2 slots: Propulsion x1, Utility x1 64286 | -5/Factory | Identified exit to Factory 64288 | -5/Factory | Loaded intel: 28 terminal locations 64731 | -5/Factory | Repaired Cld. Gravmag System 64776 | -5/Factory | Repaired Cld. Gravmag System 64885 | -5/Factory | First assault squad dispatched 64954 | -5/Factory | Incoming investigation squad redirected 65010 | -5/Factory | Build established: Hacker-Mutant 65049 | -5/Factory | Fabricated Adv. Hacking Suite? 65083 | -5/Factory | Repaired Adv. System Restoration Module? 65083 | -5/Factory | Repaired Cld. Gravmag System? 65404 | -5/Factory | Incoming investigation squad redirected 65415 | -5/Factory | Fabricated Adv. Hacking Suite (x1) 65514 | -5/Factory | Incoming assault squad redirected 65768 | -5/Factory | Spotted B-75 Beast 65768 | -5/Factory | Sucked down chute 65768 | -5/Factory | Entered Waste 65783 | -5/Waste | EMP discharged 65802 | -5/Waste | Destroyed C-40 Crusher 65810 | -5/Waste | Spotted C-40 Crusher 65834 | -5/Waste | Destroyed C-40 Crusher 65842 | -5/Waste | Destroyed C-40 Crusher 65845 | -5/Waste | Spotted C-40 Crusher 65854 | -5/Waste | Destroyed C-40 Crusher 65877 | -5/Waste | Discovered new exit (range 10) 65881 | -5/Waste | Identified exit to Factory 65882 | -5/Waste | Entered Factory 65933 | -5/Factory | Incoming investigation squad redirected 66452 | -5/Factory | Identified exit to Upper Caves 66452 | -5/Factory | Identified exit to Extension 66455 | -5/Factory | Fabricated Cmb. Antigrav System? 66645 | -5/Factory | Repaired Cld. Gravmag System? 66892 | -5/Factory | Repaired Lgt. Quantum Reactor? 67049 | -5/Factory | Cargo convoy interrupted 67212 | -5/Factory | Incoming investigation squad redirected 67226 | -5/Factory | Repaired Cld. Gravmag System? 67289 | -5/Factory | Repaired Powered Armor 67444 | -5/Factory | Fabricated Cld. Gravmag System? 68343 | -5/Factory | Central database locked down 68398 | -5/Factory | Destroyed 12 combat bots 68582 | -5/Factory | First assault squad dispatched 68597 | -5/Factory | Incoming assault squad redirected 68608 | -5/Factory | Incoming assault squad redirected 68648 | -5/Factory | Entered Upper Caves 68816 | -5/Upper Caves | Encountered a Warlord checkpoint 69345 | -5/Upper Caves | Discovered new exit (range 14) 69357 | -5/Upper Caves | Learned 4 Factory zone layouts 69465 | -5/Upper Caves | Found Alien Artifact 69482 | -5/Upper Caves | Identified exit to Upper Caves 69484 | -5/Upper Caves | Entered another Upper Caves area 69494 | -5/Upper Caves | Discovered exit to Factory (range 15) 69687 | -5/Upper Caves | Core integrity fell below 50% 69770 | -5/Upper Caves | Build established: Machinist-Mutant 69924 | -5/Upper Caves | Attracted the attention of an 0b10 checkpoint 70106 | -5/Upper Caves | Discovered new exit (range 12) 70132 | -5/Upper Caves | Identified exit to Zhirov 70138 | -5/Upper Caves | Learned 8 Factory zone layouts 70152 | -5/Upper Caves | Entered Zhirov 70152 | -5/Zhirov | Discovered new exit (range 3) 70161 | -5/Zhirov | Met Zhirov 70176 | -5/Zhirov | Learned location of Command (-1) 70178 | -5/Zhirov | Zhirov requested help retrieving the SGEMP Prototype 70186 | -5/Zhirov | Found Alien Artifact 70186 | -5/Zhirov | Identified Integrated Dissipator 70186 | -5/Zhirov | Installed Integrated Dissipator, increased core heat dissipation (+20) 70258 | -5/Zhirov | Found Alien Artifact 70305 | -5/Zhirov | Identified exit to Proximity Caves 70306 | -5/Zhirov | Entered Proximity Caves 70566 | -4/Proximity Caves | Learned location of Armory (-4) 70820 | -4/Proximity Caves | Discovered exit to Factory (range 9) 70830 | -4/Proximity Caves | Entered Factory 70830 | -4/Factory | Evolved 2 slots: Power x1, Utility x1 70831 | -4/Factory | Identified exit to Armory 70832 | -4/Factory | Identified exit to Research 70869 | -4/Factory | Identified exit to Upper Caves 70960 | -4/Factory | Repaired Cmb. Antigrav System? 71046 | -4/Factory | Discovered exit to Research (range 20) 71141 | -4/Factory | Build established: Hacker-Mutant 71229 | -4/Factory | Repaired Cld. Gravmag System? 71304 | -4/Factory | Repaired Cmb. Antigrav System 71470 | -4/Factory | Repaired Exp. Sensor Array 71517 | -4/Factory | Repaired Cld. Gravmag System 72079 | -4/Factory | Fabricated Cmb. Antigrav System (x2) 72134 | -4/Factory | Fabricated Assault Drone Bay? 72626 | -4/Factory | Incoming investigation squad redirected 72945 | -4/Factory | Lost 5 parts (1p2u2w) 72976 | -4/Factory | Fabricated Tri-rail Accelerator? 73080 | -4/Factory | Search patrols dispatched 73109 | -4/Factory | Incoming investigation squad redirected 73219 | -4/Factory | Fabricated Exp. Signal Interpreter? 73294 | -4/Factory | System corruption reached 10% 73330 | -4/Factory | Search patrols dispatched 73386 | -4/Factory | Fabricated Cld. Gravmag System (x1) 73404 | -4/Factory | Incoming investigation squad redirected 73410 | -4/Factory | Fabricated Cld. Gravmag System? 73429 | -4/Factory | Fabricated Cld. Gravmag System? 73744 | -4/Factory | Manually triggered Chute Trap 73744 | -4/Factory | Sucked down chute 73744 | -4/Factory | Entered Waste 73745 | -4/Waste | Met a frightened Derelict 73752 | -4/Waste | Found Prototype Launcher 73756 | -4/Waste | Spotted C-40 Crusher 73756 | -4/Waste | Spotted C-40 Crusher 73756 | -4/Waste | Spotted C-40 Crusher 73757 | -4/Waste | Spotted C-40 Crusher 73759 | -4/Waste | EMP discharged 73776 | -4/Waste | Destroyed C-40 Crusher 73789 | -4/Waste | Destroyed C-40 Crusher 73806 | -4/Waste | Destroyed C-40 Crusher 73812 | -4/Waste | Spotted C-40 Crusher 73816 | -4/Waste | Destroyed C-40 Crusher 73822 | -4/Waste | Destroyed C-40 Crusher 73852 | -4/Waste | Discovered new exit (range 15) 73859 | -4/Waste | EMP discharged 73863 | -4/Waste | Identified exit to Factory 73864 | -4/Waste | Entered Factory 74370 | -4/Factory | Discovered exit to Research (range 16) 74614 | -4/Factory | Search patrols dispatched 74847 | -4/Factory | Destroyed 7 combat bots 74866 | -4/Factory | Identified Transdimensional Reconstructor 74866 | -4/Factory | Warped through subspace 74871 | -4/Factory | Incoming investigation squad redirected 75144 | -4/Factory | Repaired Cmb. Antigrav System? 75256 | -4/Factory | Repaired Cld. Gravmag System 75276 | -4/Factory | Incoming investigation squad redirected 75322 | -4/Factory | Discovered exit to Research (range 6) 75379 | -4/Factory | Build established: Wizard-Mutant 75795 | -4/Factory | Core integrity fell below 50% 75805 | -4/Factory | Repaired Cmb. Antigrav System? 75823 | -4/Factory | Build established: Hacker-Mutant 75996 | -4/Factory | Repaired Broken Cmb. Antigrav System 76041 | -4/Factory | Repaired Cld. Gravmag System 76062 | -4/Factory | Incoming investigation squad redirected 76086 | -4/Factory | Repaired Cld. Gravmag System 76435 | -4/Factory | Incoming investigation squad redirected 76519 | -4/Factory | Fabricated Exp. Sensor Array? 76864 | -4/Factory | First assault squad dispatched 77044 | -4/Factory | Fabricated Assault Drone Bay? 77133 | -4/Factory | Incoming assault squad redirected 77393 | -4/Factory | Incoming assault squad redirected 77671 | -4/Factory | Entered Upper Caves 77671 | -4/Upper Caves | Accompanied by 2 allies 77671 | -4/Upper Caves | Spotted 4P-WGM(f) 77672 | -4/Upper Caves | Encountered a Master Thief 77680 | -4/Upper Caves | Allies destroyed 4P-WGM(f) 77681 | -4/Upper Caves | Spotted R2-7Z3(f) 77682 | -4/Upper Caves | Encountered a Master Thief 77693 | -4/Upper Caves | Allies destroyed R2-7Z3(f) 77744 | -4/Upper Caves | Learned Extension emergency access door positions 77789 | -4/Upper Caves | Encountered a Warlord checkpoint 77951 | -4/Upper Caves | Build established: Machinist-Mutant 77970 | -4/Upper Caves | Learned Research emergency access door positions 78012 | -4/Upper Caves | Learned 12 Research zone layouts 78198 | -4/Upper Caves | Attracted the attention of an 0b10 outpost 78452 | -4/Upper Caves | Discovered new exit (range 12) 78524 | -4/Upper Caves | Identified exit to Upper Caves 78784 | -4/Upper Caves | Entered another Upper Caves area 78784 | -4/Upper Caves | Accompanied by 4 allies 78927 | -4/Upper Caves | Discovered exit to Research (range 5) 78983 | -4/Upper Caves | Encountered a Warlord checkpoint 79099 | -4/Upper Caves | Learned location of 1 exit from Research 79100 | -4/Upper Caves | Learned Research non-interactive machine intel 79461 | -4/Upper Caves | Discovered new exit (range 16) 79512 | -4/Upper Caves | Identified exit to Warlord 79530 | -4/Upper Caves | Entered Warlord 79554 | -4/Warlord | System corruption cleaned by Quarantine Array 79593 | -4/Warlord | Discovered new exit (range 47) 79760 | -4/Warlord | Visited the Vortex Lab 79765 | -4/Warlord | Found Prototype Piercing Weapon 79765 | -4/Warlord | Identified Vortex Lance 79772 | -4/Warlord | Found Vortex Lance 79781 | -4/Warlord | Warlord's base attacked by MAIN.C 79803 | -4/Warlord | Met Warlord 79809 | -4/Warlord | Opened Warlord's prototype stash 79814 | -4/Warlord | Found Prototype Device 79814 | -4/Warlord | Identified Exp. Cloaking Device 79823 | -4/Warlord | Found Prototype Hackware 79840 | -4/Warlord | Found Prototype Reactor 80127 | -4/Warlord | Warlord forces counterattacked 80229 | -4/Warlord | Spotted Striker 80241 | -4/Warlord | Spotted Striker 80261 | -4/Warlord | Identified exit to Proximity Caves 80263 | -4/Warlord | Entered Proximity Caves 80263 | -3/Proximity Caves | Accompanied by 2 allies 80696 | -3/Proximity Caves | Destroyed B-86 Titan 80704 | -3/Proximity Caves | Entered a huge 0b10 base via the front door 81256 | -3/Proximity Caves | Spotted B-86 Titan 81521 | -3/Proximity Caves | Fabricated Exp. Melee Analysis Suite (x1) 81624 | -3/Proximity Caves | Fabricated Mak. Axe? 81990 | -3/Proximity Caves | Discovered exit to Research (range 35) 82298 | -3/Proximity Caves | Destroyed B-86 Titan 83195 | -3/Proximity Caves | Identified Vortex Chain Reactor 83336 | -3/Proximity Caves | Entered Research 83336 | -3/Research | Accompanied by 7 allies 83336 | -3/Research | Evolved 2 slots: Utility x2 83337 | -3/Research | Identified exit to Research 83340 | -3/Research | Loaded intel: 73 non-interactive machine locations 83544 | -3/Research | Fabricated Cmb. Antigrav System? 83558 | -3/Research | Spotted B-86 Titan 83748 | -3/Research | Identified Ghost Barrier 83749 | -3/Research | Adv. System Shield fried by hacking feedback 83754 | -3/Research | Incoming investigation squad redirected 83773 | -3/Research | Repaired Exp. Utility Shielding 83779 | -3/Research | Incoming investigation squad redirected 83863 | -3/Research | Identified exit to Testing 84415 | -3/Research | Fabricated Cmb. Linear Gravjet (x2) 84446 | -3/Research | Fabricated Exp. Hacking Suite? 84553 | -3/Research | Incoming investigation squad redirected 84627 | -3/Research | Incoming investigation squad redirected 84671 | -3/Research | Fabricated Exp. Hacking Suite? 84821 | -3/Research | Incoming investigation squad redirected 84920 | -3/Research | Repaired Centrium Light Armor Plating 84943 | -3/Research | Repaired Cmb. Antigrav System 85065 | -3/Research | Repaired Exp. Sensor Array 85090 | -3/Research | Build established: Wizard-Mutant 85093 | -3/Research | Repaired Cmb. Antigrav System 85166 | -3/Research | Incoming investigation squad redirected 85301 | -3/Research | Found Adv. Powered Armor 85303 | -3/Research | Entered Testing 85509 | -3/Testing | Found Exp. Hacking Suite 85629 | -3/Testing | Found Prototype Energy Cannon 85629 | -3/Testing | Identified Hpw. Disruptor Cannon 85678 | -3/Testing | Found Prototype Energy Gun 85678 | -3/Testing | Identified Warp Gun 85738 | -3/Testing | Found Prototype Device 85849 | -3/Testing | Found Prototype Energy Cannon 85849 | -3/Testing | Identified Imp. Potential Cannon 85933 | -3/Testing | Found Prototype Slashing Weapon 85933 | -3/Testing | Identified Nanosword 85993 | -3/Testing | Found Prototype Launcher 85993 | -3/Testing | Identified Z-bomb Delivery System 86223 | -3/Testing | Found Prototype Hackware 86249 | -3/Testing | Identified Dimensional Node Initializer 86249 | -3/Testing | Identified Adv. Kinecellerator 86249 | -3/Testing | Identified System Mapper 86358 | -3/Testing | Incoming investigation squad redirected 86397 | -3/Testing | Central database locked down 86431 | -3/Testing | Repaired Cmb. Antigrav System? 86440 | -3/Testing | Fabricated Femtoactuators? 86466 | -3/Testing | Repaired Cmb. Antigrav System 86852 | -3/Testing | Found Nanosword 86855 | -3/Testing | Found Nanosword 87459 | -3/Testing | Fabricated Exp. Utility Shielding? 87600 | -3/Testing | Found Prototype Protection 87600 | -3/Testing | Identified Med. Regenerative Plating 87614 | -3/Testing | Found Prototype Protection 87689 | -3/Testing | Repaired Cmb. Antigrav System 87724 | -3/Testing | Repaired Cmb. Antigrav System 87758 | -3/Testing | Repaired Cmb. Antigrav System 87799 | -3/Testing | Repaired Exp. Utility Shielding 88008 | -3/Testing | Entered Research 88008 | -2/Research | Warlord forces began assault on 0b10 88008 | -2/Research | Evolved 2 slots: Utility x1, Weapon x1 88118 | -2/Research | Research machine network offline 88187 | -2/Research | Borebot progress halted 88344 | -2/Research | Crushed by falling debris 88367 | -2/Research | Found Exp. Melee Analysis Suite 88391 | -2/Research | Spotted B-90 Cyclops 88445 | -2/Research | Discovered new exit (range 4) 88447 | -2/Research | Identified exit to Access 88474 | -2/Research | Borebot progress halted 88519 | -2/Research | Borebot progress halted 88575 | -2/Research | Met up with Warlord 88601 | -2/Research | Discovered new exit (range 13) 88665 | -2/Research | Identified exit to Quarantine 88666 | -2/Research | Spotted Striker 88670 | -2/Research | Identified SHELL Armor 88685 | -2/Research | Entered Quarantine 88741 | -2/Quarantine | Found Alien Energy Cannon 88741 | -2/Quarantine | Identified Core Cannon 89813 | -2/Quarantine | Found Alien Artifact 90204 | -2/Quarantine | Repaired Exp. Utility Shielding? 90234 | -2/Quarantine | Identified Core Reset Matrix 90234 | -2/Quarantine | Used Core Reset Matrix 90236 | -2/Quarantine | Initialized slip node 90238 | -2/Quarantine | Detected hypermatrix surge 90238 | -2/Quarantine | Sensed 17 artifacts in vicinity 90243 | -2/Quarantine | Found Hpw. Transdimensional Reconstructor 90250 | -2/Quarantine | Found Transdimensional Reconstructor 90329 | -2/Quarantine | Repaired Cmb. Antigrav System? 90394 | -2/Quarantine | Discovered exit to Access (range 15) 90414 | -2/Quarantine | Found Sigix Broadsword 90708 | -2/Quarantine | Cryocooling Duct disabled 90723 | -2/Quarantine | Ambient heat levels rising (+20) 90723 | -2/Quarantine | Non-combat units ordered to evacuate 90935 | -2/Quarantine | First assault squad dispatched 90986 | -2/Quarantine | Incoming investigation squad redirected 91009 | -2/Quarantine | Repaired Cmb. Antigrav System 91039 | -2/Quarantine | Repaired Cmb. Antigrav System? 91250 | -2/Quarantine | Found Subatomic Replicator 91399 | -2/Quarantine | Warped through subspace to slip node 91409 | -2/Quarantine | Found Dimensional Node Initializer 91505 | -2/Quarantine | Spotted Fortress 91549 | -2/Quarantine | Discovered new exit (range 6) 91552 | -2/Quarantine | Identified exit to Section 7 91561 | -2/Quarantine | Entered Section 7 91562 | -2/Section 7 | Sensed 22 artifacts in vicinity 91669 | -2/Section 7 | Discovered exit to Access (range 15) 91695 | -2/Section 7 | Initialized slip node 91734 | -2/Section 7 | Spotted S7 Guard 91737 | -2/Section 7 | Found Core Membrane 91760 | -2/Section 7 | Found Integrated Mediator 91760 | -2/Section 7 | Installed Integrated Mediator, increased core attachment efficiency. 91821 | -2/Section 7 | Build established: Wizard-Gladiator 91833 | -2/Section 7 | Installed Core Membrane, gained immunity to corruption 91868 | -2/Section 7 | Spotted Alpha 7 91876 | -2/Section 7 | Spotted Alpha 7 91943 | -2/Section 7 | Destroyed S7 Guard 91960 | -2/Section 7 | Destroyed Alpha 7 91971 | -2/Section 7 | Destroyed Alpha 7 92131 | -2/Section 7 | Build established: Machinist-Gladiator 92281 | -2/Section 7 | Spotted S7 Guard 92305 | -2/Section 7 | Destroyed S7 Guard 92307 | -2/Section 7 | Found Prototype Protection 92307 | -2/Section 7 | Identified Hvy. Regenerative Plating 92399 | -2/Section 7 | Found Integrated Thermoelectric Network 92399 | -2/Section 7 | Installed Integrated Thermoelectric Network, gained heat-energy exchange potential 92455 | -2/Section 7 | Spotted S7 Guard 92887 | -2/Section 7 | Destroyed S7 Guard 93015 | -2/Section 7 | Spotted B-90 Cyclops 93043 | -2/Section 7 | Found Prototype Processor 93043 | -2/Section 7 | Identified Exp. Target Analyzer 93156 | -2/Section 7 | Found Prototype Processor 93156 | -2/Section 7 | Identified Exp. Core Analyzer 93176 | -2/Section 7 | Exp. Hacking Suite fried by hacking feedback 93251 | -2/Section 7 | Repaired Exp. Utility Shielding 93437 | -2/Section 7 | Found Integrity Redistributor 93599 | -2/Section 7 | Found Integrity Redistributor 93631 | -2/Section 7 | Found Spacefold Activator 93695 | -2/Section 7 | Found Unknown Piercing Weapon 93695 | -2/Section 7 | Identified Enh. Force Lance 93710 | -2/Section 7 | Found Prototype Hackware 93710 | -2/Section 7 | Identified Exp. System Shield 93774 | -2/Section 7 | Incoming investigation squad redirected 93776 | -2/Section 7 | Repaired Cmb. Antigrav System 93834 | -2/Section 7 | Spotted B-99 Colossus 93890 | -2/Section 7 | Found Integrated Dissipator 93890 | -2/Section 7 | Installed Integrated Dissipator, increased core heat dissipation (+20) 93921 | -2/Section 7 | Found LRC Armor 93921 | -2/Section 7 | Installed LRC Armor, increased core integrity (+250) 94094 | -2/Section 7 | Found Sigix Sheargun 94096 | -2/Section 7 | Found Sigix Sheargun 94196 | -2/Section 7 | Spotted Striker 94196 | -2/Section 7 | Spotted Striker 94233 | -2/Section 7 | Found Sigix Shearcannon 94255 | -2/Section 7 | Destroyed Striker 94343 | -2/Section 7 | First assault squad dispatched 94367 | -2/Section 7 | Incoming assault squad redirected 94479 | -2/Section 7 | Found Sigix Sheargun 94482 | -2/Section 7 | Found Sigix Sheargun 94546 | -2/Section 7 | Spotted Executioner 94546 | -2/Section 7 | Spotted Executioner 94571 | -2/Section 7 | Core integrity fell below 50% 94573 | -2/Section 7 | Found Terrabomb 94580 | -2/Section 7 | Destroyed Executioner 94601 | -2/Section 7 | Found Exp. Core Analyzer 94736 | -2/Section 7 | Destroyed Executioner 94784 | -2/Section 7 | Found Transdimensional Reconstructor 94798 | -2/Section 7 | Found Transdimensional Reconstructor 94800 | -2/Section 7 | Warped through subspace to slip node 94811 | -2/Section 7 | Entered Access 94811 | -1/Access | Evolved 2 slots: Propulsion x1, Weapon x1 95049 | -1/Access | Build established: Alien-Gladiator 95094 | -1/Access | Incoming investigation squad redirected 95186 | -1/Access | Repaired Cmb. Antigrav System 95667 | -1/Access | Incoming investigation squad redirected 95732 | -1/Access | Found Prototype Device 95732 | -1/Access | Identified Exp. Shield Generator 95955 | -1/Access | Build established: Wizard-Mutant 96314 | -1/Access | Repaired Exp. Utility Shielding? 96565 | -1/Access | Repaired Cmb. Antigrav System 96594 | -1/Access | Repaired Cmb. Antigrav System 96738 | -1/Access | Spotted B-99 Colossus 96827 | -1/Access | Fabricated Exp. Weapon Cycler (x1) 96903 | -1/Access | Fabricated Adv. Particle Accelerator (x1) 96933 | -1/Access | Incoming investigation squad redirected 97344 | -1/Access | First assault squad dispatched 97363 | -1/Access | Incoming assault squad redirected 97371 | -1/Access | Spotted B-99 Colossus 97843 | -1/Access | Fabricated Exp. Terrain Scanner? 97853 | -1/Access | Repaired Cmb. Antigrav System? 98184 | -1/Access | Discovered new exit (range 7) 98188 | -1/Access | Identified exit to Command 98189 | -1/Access | Entered Command 98850 | -1/Command | Phase Generator disabled 98869 | -1/Command | Found Unknown Device 98869 | -1/Command | Identified Launcher Loader 99142 | -1/Command | Discovered new exit (range 17) 99289 | -1/Command | Repaired Exp. Utility Shielding 99427 | -1/Command | Spotted B-99 Colossus 99489 | -1/Command | First assault squad dispatched 99507 | -1/Command | Incoming assault squad redirected 99511 | -1/Command | Incoming assault squad redirected 99640 | -1/Command | Found Unknown Device 99640 | -1/Command | Identified Quantum Capacitor 99779 | -1/Command | Disengaged cave seal 99779 | -1/Command | Derelicts emerged from the dark tunnel 99779 | -1/Command | Welcomed Warlord to Command 100008 | -1/Command | P-80 Master assimilated allied QO-JCT(i) 100073 | -1/Command | Disengaged cave seal 100073 | -1/Command | Derelicts emerged from the dark tunnel 100467 | -1/Command | P-80 Master assimilated allied 5L-D0Q(g) 100566 | -1/Command | Used Integrity Redistributor, redistributed integrity from core (-155) 100626 | -1/Command | Destroyed M Guard 100628 | -1/Command | Warlord commented on Warlord statues 100633 | -1/Command | Spotted Combat Programmer 100633 | -1/Command | Spotted Combat Programmer 100646 | -1/Command | Destroyed Combat Programmer 100653 | -1/Command | Destroyed Combat Programmer 100655 | -1/Command | Spotted M Guard 100658 | -1/Command | Destroyed M Guard 100658 | -1/Command | All MAIN.C guards destroyed 100667 | -1/Command | Found Prototype Device 100667 | -1/Command | Identified AEGIS Remote Shield 100680 | -1/Command | Found Prototype Device 100680 | -1/Command | Identified Thermal Barrier 100747 | -1/Command | Incoming assault squad redirected 100790 | -1/Command | Incoming assault squad redirected 100799 | -1/Command | Incoming assault squad redirected 100805 | -1/Command | Found Prototype Processor 100844 | -1/Command | Build established: Alien-Gunner 100848 | -1/Command | Identified Exp. Targeting Computer 100850 | -1/Command | Met MAIN.C 100852 | -1/Command | Warlord shut down involuntarily 100867 | -1/Command | 0b10 Conduit disabled 100868 | -1/Command | Destroyed MAIN.C Shell 100870 | -1/Command | MAIN.C activated Command garrisons 100892 | -1/Command | Destroyed MAIN.C 100898 | -1/Command | Discovered new exit (range 42) 100898 | -1/Command | Discovered new exit (range 99) 100898 | -1/Command | Extracted map data and part IDs from MAIN.C's data core 100910 | -1/Command | Found Omega Cannon 102578 | -1/Command | Attacked by Warlord forces 102966 | -1/Command | Build established: Alien-Mutant 104912 | -1/Command | Found Zero-point Reactor 104914 | -1/Command | Found Exp. Powered Armor 104918 | -1/Command | Found Exp. Powered Armor 104998 | -1/Command | Found Zero-point Reactor 105001 | -1/Command | Found Zero-point Reactor 105006 | -1/Command | Found Cld. Nova Cannon 105143 | -1/Command | Found Adv. Kinecellerator 105235 | -1/Command | Build established: Machinist-Mutant 105248 | -1/Command | Found Exp. Target Analyzer 105250 | -1/Command | Found Enh. Gamma Rifle 105297 | -1/Command | Found Exp. Targeting Computer 105318 | -1/Command | Found Exp. Targeting Computer 105583 | -1/Command | Build established: Alien-Mutant 105585 | -1/Command | Found Hvy. Regenerative Plating 106048 | -1/Command | Found Blast Cannon 106051 | -1/Command | Found Blast Cannon 106104 | -1/Command | Found Exp. Transmission Jammer 106106 | -1/Command | Found Spectral Analyzer 106108 | -1/Command | Found Vortex Chain Reactor 106965 | -1/Command | Found Exp. Core Analyzer 107023 | -1/Command | Build established: Scavenger-Mutant 107176 | -1/Command | Found Active Sensor Suite 107870 | -1/Command | Found Zero-point Reactor 107958 | -1/Command | Warped through subspace to slip node 107958 | -1/Command | Discovered new exit (range 5) 107965 | -1/Command | Entered Access_0 107966 | -1/Access_0 | Sensed 4 artifacts in vicinity 107966 | -1/Access_0 | Met Architect 107973 | -1/Access_0 | Subspace Access Node disabled 107990 | -1/Access_0 | A6 warped into view 108004 | -1/Access_0 | Used Subatomic Replicator to replicate Integrity Redistributor 108013 | -1/Access_0 | Used Integrity Redistributor, redistributed integrity from core (-165) 108023 | -1/Access_0 | Subspace Access Node disabled 108031 | -1/Access_0 | A5 warped into view 108044 | -1/Access_0 | Subspace Access Node disabled 108064 | -1/Access_0 | Subspace Access Node disabled 108078 | -1/Access_0 | A4 warped into view 108091 | -1/Access_0 | Singularity Gate disabled 108131 | -1/Access_0 | Destroyed Architect 108135 | -1/Access_0 | Used Integrity Redistributor, redistributed integrity from core (-177) 108151 | -1/Access_0 | Core integrity fell below 50% 108164 | -1/Access_0 | Found Hpw. Transdimensional Reconstructor 108187 | -1/Access_0 | Destroyed A2 108198 | -1/Access_0 | Found Exp. Phase Shifter 108211 | -1/Access_0 | Destroyed A6 108226 | -1/Access_0 | Destroyed A8 108231 | -1/Access_0 | Destroyed A4 108251 | -1/Access_0 | Found Sigix Broadsword 108255 | -1/Access_0 | Destroyed 12 combat bots 108360 | -1/Access_0 | Destroyed A5 108403 | -1/Access_0 | Destroyed 12 combat bots 108441 | -1/Access_0 | Found Exp. Powered Armor 108443 | -1/Access_0 | Found Exp. Powered Armor 108486 | -1/Access_0 | Found Prototype Device 108486 | -1/Access_0 | Identified Desublimator 108651 | -1/Access_0 | Extracted Singularity Gate Test 138-C access codes from A2's data core 108737 | -1/Access_0 | Found Core Regenerator 108737 | -1/Access_0 | Used Core Regenerator, restored core integrity (+462) 108760 | -1/Access_0 | Build established: Scavenger-Gunner 108771 | -1/Access_0 | Found Exp. Target Analyzer 108847 | -1/Access_0 | Found Hpw. Transdimensional Reconstructor 108850 | -1/Access_0 | Found Prototype Protection 108850 | -1/Access_0 | Identified Centrium Linked Plating 108856 | -1/Access_0 | Found Prototype Hackware 108856 | -1/Access_0 | Identified Architect God Chip A 108862 | -1/Access_0 | Found Prototype Hackware 108862 | -1/Access_0 | Identified Architect God Chip D 109138 | -1/Access_0 | Build established: Wizard-Gunner 109274 | -1/Access_0 | A3 warped into view 109292 | -1/Access_0 | Destroyed A3 109306 | -1/Access_0 | Found Prototype Device 109307 | -1/Access_0 | Identified ST Field Compressor 109314 | -1/Access_0 | Found Prototype Ballistic Gun 109314 | -1/Access_0 | Identified A3's Sniper Rifle 109550 | -1/Access_0 | Found Integrated Mediator 109550 | -1/Access_0 | Installed Integrated Mediator, increased core attachment efficiency. 109713 | -1/Access_0 | Found Exp. EM Disruption Field 109901 | -1/Access_0 | Build established: Scavenger-Gunner 110263 | -1/Access_0 | Found Sigix Corpse 110272 | -1/Access_0 | Warped through subspace to slip node 110272 | -1/Access_0 | Discovered new exit (range 8) 110274 | -1/Access_0 | Warped through subspace to slip node 110290 | *** | Heading to fleet! Last Messages --------------- 09760_ Quantum Shear penetrates Wall. 09760_ Quantum Shear penetrates Earth. 10018_ Acquired 30 matter. 10256_ Dropped Adv. Power Amplifier. 10257_ Dropped Cld. Antigrav System. 10258_ Quantum Shear penetrates Analysis Chamber. 10258_ Analysis Chamber breached. 10258_ Quantum Shear penetrates Analysis Chamber. 10258_ Quantum Shear penetrates Wall. 10258_ Quantum Shear penetrates Earth. 10264_ Acquired Sigix Corpse. 10268_ Acquired Cld. Antigrav System. 10273_ Warped through subspace, drawn to slip node. 10273_ EXIT=FOUND 10275_ Warped through subspace, drawn to slip node. 10285_ Quantum Shear penetrates Dimensional Slip Node. 10285_ Dimensional Slip Node implodes. 10285_ Quantum Shear penetrates Earth. 10287_ The unstable cave ceiling collapses. 10290_ Quantum Shear penetrates Earth. Map ----- +----------------------------------------------------+ | | | | | | | | | | | | | | | | | | | | | | | | | | | | | | | | | ?????????????????????????????????????????????????? | | ?????????????????????????????????????????????????? | | ?????????????????????????????????????????????????? | | ?????????????????????????????????????????????????? | | ?????????????????????????????????????????????????? | | ?????????????????????????????????????????????????? | | ????????????????????????###??????????????????????? | | ???????????????????????## ##?????????????????????? | | ???????????????????????# #?????????????????????? | | ???????????????????????# @ #?????????????????????? | | ??????????????????????## #?????????????????????? | | ?????????????????????# #?????????????????????? | | ???????????????????# ????????????????????? | | ???????????????????# #???????????????????? | | ??????????????????# #??????????????????? | | ??????????????????# ##??????????????????? | | ??????????????????# # ???????????????????? | | ??????????????????## #??????????????????? | | ??????????????????? #??????????????????? | | ??????????????????## ##??????????????????? | | ???????????????????# #???????????????????? | | ???????????????????## #???????????????????? | | ????????????????????# # ##;;##???????????????????? | | ????????????????????### ?? ##????????????????????? | | ??????????????????????#;?? ??????????????????????? | | ??????????????????????? ??#??????????????????????? | | ?????????????????????????????????????????????????? | | ?????????????????????????????????????????????????? | | ?????????????????????????????????????????????????? | | ?????????????????????????????????????????????????? | | ?????????????????????????????????????????????????? | | ?????????????????????????????????????????????????? | | ?????????????????????????????????????????????????? | | ?????????????????????????????????????????????????? | +----------------------------------------------------+ Best States ------------- Heat Dissipation 92 Energy Generation 100 Energy Capacity 980 Matter Stores 800 Matter Capacity 800 Sight Range 24 Robot Scan Range 20 Terrain Scan Range 30 Terrain Scan Density 2010 Jamming Range 16 Cloak Strength 4 Power Amplification 70 Additional Mass Support 20 Armor Coverage 900 Resistance: KI 20 Resistance: EX 50 Resistance: EM 25 Power Shielding 90 Utility Shielding 90 Weapon Shielding 100 Weapon Cycling 30 Melee Speed Boost 50 Phase Shifting 20 Evasion (%) 93 Targeting Accuracy 20 Melee Accuracy 12 Target Analysis 10 Core Analysis 8 Armor Integrity Analysis 40 Recoil Reduction 5 Particle Charging 62 Offensive Hacking 100 Defensive Hacking 100 Authchip Count 2 Trap Extractor Capacity 8 Item Schematics ----------------- Adv. Force Booster | -2/Quarantine | Hacked Cmb. Linear Gravjet | -2/Quarantine | Hacked Exp. Phase Shifter | -2/Quarantine | Hacked Exp. Weapon Cycler | -2/Section 7 | Hacked Cmb. Antigrav System | -2/Section 7 | Hacked Adv. Particle Accelerator | -2/Section 7 | Hacked Exp. Terrain Scanner | -1/Access | Hacked Robot Schematics ------------------ None Fabricated ------------ Cld. Gravmag System | x1 | -7/Factory | Authchip Cld. Gravmag System | x1 | -7/Factory | Authchip Cmb. Antigrav System | x2 | -7/Factory Lgt. Neutrino Core | x1 | -7/Factory Adv. System Restoration Module | x2 | -6/Factory | Authchip Combat Drone Bay | x1 | -6/Factory Imp. Hacking Suite | x1 | -6/Factory | Preloaded Combat Drone Bay | x1 | -6/Factory | Authchip Exp. Utility Shielding | x1 | -6/Factory | Authchip Adv. Trap Extractor | x2 | -6/Factory Adv. Hacking Suite | x1 | -5/Factory Adv. Hacking Suite | x1 | -5/Factory Cmb. Antigrav System | x2 | -5/Factory | Authchip Cld. Gravmag System | x1 | -5/Factory | Authchip Cmb. Antigrav System | x2 | -4/Factory | Authchip Assault Drone Bay | x1 | -4/Factory | Authchip Tri-rail Accelerator | x1 | -4/Factory | Authchip Exp. Signal Interpreter | x1 | -4/Factory | Authchip Cld. Gravmag System | x1 | -4/Factory | Authchip Cld. Gravmag System | x1 | -4/Factory Cld. Gravmag System | x1 | -4/Factory Exp. Sensor Array | x1 | -4/Factory Assault Drone Bay | x1 | -4/Factory Exp. Melee Analysis Suite | x1 | -3/Proximity Caves | Authchip Mak. Axe | x2 | -3/Proximity Caves Cmb. Antigrav System | x2 | -3/Research Cmb. Linear Gravjet | x2 | -3/Research | Preloaded Exp. Hacking Suite | x1 | -3/Research | Authchip Exp. Hacking Suite | x1 | -3/Research Femtoactuators | x1 | -3/Testing Exp. Utility Shielding | x1 | -3/Testing Exp. Weapon Cycler | x1 | -1/Access | Authchip Adv. Particle Accelerator | x1 | -1/Access Exp. Terrain Scanner | x1 | -1/Access Alien Tech Used ----------------- Integrated Dissipator Transdimensional Reconstructor Core Cannon Core Reset Matrix Dimensional Node Initializer Sigix Broadsword Integrated Mediator Core Membrane Integrated Thermoelectric Network Spacefold Activator LRC Armor Sigix Sheargun Integrity Redistributor Sigix Shearcannon Subatomic Replicator Core Regenerator High-powered Transdimensional Reconstructor Achievements -------------- None Challenges ------------ None Game ------ Seed LatentModifiedMegatreads Manual? 0 Play Time 27:20:31 Cumulative 728.4 hours Start 2023.05.09 @ 23:02:03 End 2023.05.16 @ 20:27:27 Sessions 41 Manual Loads 0 Difficulty Rogue Special Mode None Game No. 79 Rogue 64 Adventurer 5 Explorer 10 Win Type 2 Total 27 Types 6/7/6/0/3/1/3/0/1 Lore% 90 Gallery% 95 Achievement% 85 Wizard Run 0 Options --------- ASCII 0 Keyboard 1 Movement Arrows Keybinds 0 Fullscreen 2 Font 18/SmallcapsGlow Map View 76x50 Tactical HUD 1 Map Filters NONE Filters NONE Steam 1 RUN: 11ca041d-443d-48a3-9409-1c9b658261e4